Cogmind - Beta 16 @@@ ROGUE MODE // 2025.11.01 @ 02:10:25 Player: Naughtyusername Result: Self-destructed Performance ------------- Evolutions (8) 4000 Regions Visited (32) 6400 Robots Destroyed (487) 2435 Value Destroyed (19925) 19925 Prototype IDs (96) 1920 Alien Tech Used (5) 1000 Bonus (12394) 12394 TOTAL SCORE: 48074 Bonus ------- High Alert Combat Kills 3301 Follower Combat Kills 3479 Awakened Behemoth Slayer 1000 Network Hubs Disabled 200 Met Data Miner 300 Met Imprinter 300 Was Imprinted 300 Met Zhirov 300 Met R17 at Cetus 500 Found Hidden Lab 3000 Friendly Fire -286 Cogmind --------- Core Integrity 688/1450 Matter 117/300 Energy 16/100 System Corruption 0% Temperature Cool (0) Movement Core (50) Location -2/Research Parts ------- > --- POWER (3) -------- (None) > --- PROPULSION (7) --- (None) > --- UTILITY (11) ----- (None) > --- WEAPON (3) ------- (None) > --- INVENTORY (5) ---- Potential Cannon Potential Cannon Peak State ------------ > --- POWER ------------ Quantum Reactor Quantum Reactor Quantum Reactor > --- PROPULSION ------- Enhanced Biometal Leg Centrium Leg Centrium Leg Centrium Leg Centrium Leg Centrium Leg Centrium Leg > --- UTILITY ---------- Improved Cryofiber Web Experimental Heat Sink Huge Storage Unit Experimental Signal Interpreter Advanced Targeting Computer Core Analyzer Advanced Transmission Jammer Graphene Brace Advanced Force Field Advanced Force Field Advanced Corruption Screen > --- WEAPON ----------- Enhanced Nova Cannon Hypervelocity Railgun Hypervelocity Railgun > --- INVENTORY -------- Quantum Reactor Centrium Leg Heavy Shield Leg Experimental Heat Sink Experimental Cooling System High-capacity Storage Unit Experimental Optical Array Long-range Sensor Array IFF Parser Improved Cloaking Device AEGIS Remote Shield Advanced Point Defense System Deep Network Scanner Hacking Drone Bay Dimensional Node Initializer Transdimensional Reconstructor Core Reset Matrix Enhanced Nova Cannon Potential Cannon Potential Cannon Hellfire Missile Launcher CR-A16's Behemoth Slayer [Rating: 203] Favorites ----------- Power Quantum Reactor Engine Cooled Ion Engine Power Core Neutrino Core Reactor Quantum Reactor Propulsion Enhanced Armored Leg Treads Light Treads Leg Enhanced Armored Leg Wheel Compact Wheel Hover Unit Cooled Airjet Flight Unit Makeshift Flight Unit Utility Advanced Targeting Computer Device Improved Heat Sink Storage High-capacity Storage Unit Processor Advanced Targeting Computer Hackware Authchip [R/Combat] Protection Centrium Medium Armor Plating Weapon Cooled Plasma Cannon Energy Gun Field Laser Energy Cannon Cooled Plasma Cannon Ballistic Gun Enhanced Autogun Ballistic Cannon Hardcell Cannon Launcher Mini Smartbomb Launcher Special Weapon Advanced Remote Datajack Slashing Weapon Vibroblade Piercing Weapon Makeshift Spear Build | -11 -10 -10 -9 -9 -8 -8 -7 -7 -7 -7 -6 -6 -6 -6 -6 -6 -6 -5 -5 -5 -5 -5 -5 -4 -4 -4 -4 -3 -3 -3 -3 -2 ------- Run | Yrd Mat Min Mat Min Mat Sto Fac Low Low Dat Pro Fac Was Fac Low Low Zio Pro Fac Ext Cet Arc Hub Fac Upp Upp Zhi Pro Res Arm Lab Res Slots Evolved 16 | . . . 2 . 2 . 2 . . . . 2 . . . . . . 2 . . . . 2 . . . . 2 . . 2 Power 1 | . . . . . . . . . . . . . . . . . . . . . . . . . . . . . . . . 1 Propulsion 5 | . . . . . 1 . 1 . . . . 1 . . . . . . 1 . . . . 1 . . . . . . . . Utility 9 | . . . 1 . 1 . 1 . . . . 1 . . . . . . 1 . . . . 1 . . . . 2 . . 1 Weapon 1 | . . . 1 . . . . . . . . . . . . . . . . . . . . . . . . . . . . . Parts Attached 359 | 8 8 9 30 3 29 24 26 7 3 1 . 4 1 21 2 . 5 6 25 3 6 . 8 26 . 3 3 2 30 53 2 11 Power 41 | 1 . 2 4 . 2 2 2 1 . . . . . 4 1 . . . 2 1 3 . . 2 . . 1 . 6 4 . 3 Engine 17 | 1 . 2 4 . 2 2 2 1 . . . . . 3 . . . . . . . . . . . . . . . . . . Core 4 | . . . . . . . . . . . . . . 1 1 . . . 1 . . . . . . . . . 1 . . . Reactor 20 | . . . . . . . . . . . . . . . . . . . 1 1 3 . . 2 . . 1 . 5 4 . 3 Propulsion 96 | 2 2 1 4 2 7 9 11 1 2 . . 1 1 5 . . 2 3 6 1 1 . 3 8 . 2 1 . 7 11 . 3 Treads 32 | 2 2 1 4 2 6 4 7 . . . . . 1 1 . . 1 . . . . . . . . . . . . . . 1 Leg 49 | . . . . . . 1 2 . 2 . . 1 . 1 . . 1 3 6 1 1 . 2 7 . 1 1 . 6 11 . 2 Wheel 7 | . . . . . . 3 2 . . . . . . 2 . . . . . . . . . . . . . . . . . . Hover 7 | . . . . . 1 1 . . . . . . . 1 . . . . . . . . 1 1 . 1 . . 1 . . . Flight 1 | . . . . . . . . 1 . . . . . . . . . . . . . . . . . . . . . . . . Utility 123 | 2 3 2 8 1 7 4 8 1 1 . . 2 . 8 1 . . 1 14 . 2 . 2 13 . 1 1 1 12 25 1 2 Device 62 | 1 2 2 5 1 2 4 5 . 1 . . 1 . 1 1 . . . 9 . . . 2 8 . . 1 . 6 8 1 1 Storage 11 | 1 1 . 2 . 2 . 1 . . . . . . . . . . . 1 . . . . 1 . . . 1 1 . . . Processor 17 | . . . 1 . . . 1 1 . . . . . 4 . . . 1 2 . . . . . . 1 . . 2 3 . 1 Hackware 12 | . . . . . . . . . . . . . . 1 . . . . . . . . . 1 . . . . . 10 . . Protection 21 | . . . . . 3 . 1 . . . . 1 . 2 . . . . 2 . 2 . . 3 . . . . 3 4 . . Artifact . | . . . . . . . . . . . . . . . . . . . . . . . . . . . . . . . . . Weapon 99 | 3 3 4 14 . 13 9 5 4 . 1 . 1 . 4 . . 3 2 3 1 . . 3 3 . . . 1 5 13 1 3 Energy Gun 44 | 2 3 2 11 . 8 4 4 2 . 1 . . . 1 . . 1 . 2 1 . . 1 . . . . 1 . . . . Energy Cannon 19 | . . . 1 . . 2 . . . . . . . 3 . . 1 . 1 . . . 1 1 . . . . 3 4 1 1 Ballistic Gun 16 | 1 . 1 1 . 1 3 1 2 . . . . . . . . . . . . . . . . . . . . . 4 . 2 Ballistic Cannon 5 | . . . . . . . . . . . . . . . . . 1 . . . . . . . . . . . 1 3 . . Launcher 10 | . . 1 1 . 4 . . . . . . . . . . . . 1 . . . . 1 . . . . . . 2 . . Special Weapon 1 | . . . . . . . . . . . . . . . . . . . . . . . . 1 . . . . . . . . Impact Weapon . | . . . . . . . . . . . . . . . . . . . . . . . . . . . . . . . . . Slashing Weapon 1 | . . . . . . . . . . . . . . . . . . . . . . . . 1 . . . . . . . . Piercing Weapon 3 | . . . . . . . . . . . . 1 . . . . . 1 . . . . . . . . . . 1 . . . Special Melee Weapon . | . . . . . . . . . . . . . . . . . . . . . . . . . . . . . . . . . Unidentified Prototypes 53 | . 1 . . . 4 5 . 2 . . . . . 4 . . . . 10 2 1 . 4 3 . . 2 . 4 7 3 1 Corrupted Parts 5 | . . . 2 . . . . . . . . . . . . . . 1 . . . . . 2 . . . . . . . . System Corruption 15 | . . . 7 . . . . . . . . . . . . . . 4 . . . . . 4 . . . . . . . . Parts Lost 84 | . . 4 6 . 7 9 16 . . . . . 2 5 . . 1 . . . . . 3 6 . . . . 6 8 . 11 Power 13 | . . 1 1 . . . 1 . . . . . . 2 . . . . . . . . . 2 . . . . . 1 . 5 Propulsion 26 | . . 1 . . 3 7 7 . . . . . . 1 . . . . . . . . . 3 . . . . 2 1 . 1 Utility 24 | . . 1 1 . 1 2 5 . . . . . 2 1 . . . . . . . . . 1 . . . . 3 5 . 2 Weapon 21 | . . 1 4 . 3 . 3 . . . . . . 1 . . 1 . . . . . 3 . . . . . 1 1 . 3 Highest Loss Streak 6 | . . 2 2 . 3 3 5 . . . . . 2 2 . . 1 . . . . . 2 3 . . . . 2 4 . 6 To Critical Strikes . | . . . . . . . . . . . . . . . . . . . . . . . . . . . . . . . . . Average Backups 18 | 1 9 9 12 15 19 19 18 18 18 19 18 18 19 18 19 20 19 18 18 19 19 19 18 20 22 22 21 22 21 22 21 21 Power . | . 1 . . 1 2 2 1 . . . . . 1 . . . . . 1 1 1 1 1 . 1 1 1 1 . 1 2 . Propulsion 2 | . 4 3 5 4 3 . . 1 1 2 2 1 1 1 . 1 . . 1 2 2 2 2 1 1 1 1 3 2 1 2 2 Utility 8 | . 1 2 3 6 6 6 5 8 8 8 8 8 9 8 11 12 12 11 9 10 10 10 10 12 15 15 14 12 10 11 9 10 Weapon 5 | . 2 3 3 3 5 8 7 7 8 8 7 7 7 6 6 6 5 4 5 5 5 5 4 3 3 3 3 4 5 6 5 4 Tool/Special . | . . . . . . . . . . . . . . . . . . . . . . . . . . . . . . . . . Unused Backups 69 | . 1 . 6 . 3 3 5 2 4 . . 1 1 . . . 3 2 7 . 2 . . 4 . . 2 . 3 8 4 8 Power 6 | . . . 1 . . 2 . . . . . . . . . . . 1 1 . 1 . . . . . . . . . . . Propulsion 7 | . 1 . . . . 1 1 . . . . . . . . . . . . . . . . . . . . . 1 1 . 2 Utility 35 | . . . 2 . 2 . 3 . 4 . . 1 1 . . . 2 1 4 . . . . 4 . . 2 . 1 4 . 4 Weapon 18 | . . . 3 . 1 . 1 1 . . . . . . . . 1 . 1 . 1 . . . . . . . 1 3 4 1 Tool/Special 3 | . . . . . . . . 1 . . . . . . . . . . 1 . . . . . . . . . . . . 1 Average Slot Usage (%) 95 | . 99 99 98 100 99 98 96 91 92 75 92 92 84 85 92 93 91 92 93 94 94 94 94 97 100 100 88 100 99 90 97 98 Engine 6 | . 14 13 10 11 9 9 7 13 14 14 14 12 12 10 6 6 6 6 4 . . . . . . . . . . . . . Core 1 | . . . . . . . . . . . . . . . 5 6 6 6 5 5 1 . . . . . . . . . . . Reactor 3 | . . . . . . . . . . . . . . . . . . . . 5 9 11 11 10 10 10 10 10 8 8 9 11 Treads 8 | . 28 27 22 22 26 16 19 . . . . . 5 5 6 6 6 7 . . . . . . . . . . . . . . Leg 15 | . . . . . . . 2 14 14 14 14 18 6 3 6 6 11 17 27 27 27 27 27 32 35 35 35 35 30 28 31 28 Wheel 2 | . . . . . . 8 4 7 7 7 7 6 6 6 12 12 6 . . . . . . . . . . . . . . . Device 13 | . 13 13 20 11 10 18 19 13 14 14 13 12 10 4 10 11 11 6 7 5 5 5 8 12 15 15 15 15 20 17 25 26 Storage 6 | . 14 14 11 11 9 9 7 7 7 7 7 6 6 6 6 6 6 6 5 5 5 5 5 5 5 5 5 5 4 4 4 4 Processor 12 | . . . . 11 9 9 8 14 14 14 14 12 10 17 18 18 18 25 22 22 22 22 22 17 15 15 15 15 14 9 13 14 Protection 2 | . . . . . 7 . . . . . . 5 6 6 1 . . . 2 5 5 5 2 4 5 5 5 5 4 6 . . Energy Gun 9 | . 27 26 23 33 25 11 6 13 14 2 14 10 6 . . . 4 3 . 4 5 5 4 4 5 5 . 5 3 . . . Energy Cannon 6 | . . . 1 . . 7 4 . . . . . . 13 18 15 11 14 15 11 11 11 10 10 10 9 . 5 6 8 8 7 Ballistic Gun 2 | . . 1 7 . 1 7 10 7 7 1 7 6 6 2 . . . . . . . . . . . . . . . 3 4 4 Peak Build Rating 203 | 7 12 15 22 25 34 37 49 49 56 56 56 63 71 84 74 73 79 81 110 111 117 117 118 142 140 143 149 147 168 184 188 203 Average Rating 82 | 5 11 12 16 23 31 33 40 47 51 44 55 62 69 78 72 71 74 77 97 108 115 117 116 135 139 141 129 146 160 173 180 198 On Entrance 81 | . 7 12 14 22 25 33 33 42 49 56 55 55 63 65 64 68 73 78 81 109 109 117 117 116 138 139 142 147 147 159 173 184 Avg Prop Armor Cover (%) 13 | . . . . . . 15 16 10 10 14 10 12 15 15 17 18 11 12 . . . . . . . . . . 3 . . . Naked Turns 4 | . . . . . . . . . . . . . . . . . . . . . . . . . . . . . . . . 4 Heaviest Build 200 | 13 20 20 39 38 65 64 72 70 70 70 70 73 71 99 99 93 98 90 104 98 110 110 113 153 148 148 145 141 171 196 185 200 Greatest Support 210 | 40 40 43 43 43 68 67 88 28 28 28 28 28 28 32 32 32 48 83 117 118 118 118 118 159 154 154 160 160 186 210 208 210 Greatest Overweight (x) 20 | 1 . . . . . 20 7 2 2 2 2 2 2 6 3 2 2 1 . . . . . 1 . . . . 1 . . . Average Overweight (x) . | . . . . . . 3 2 2 2 2 2 2 2 3 2 2 1 1 . . . . . . . . . . . . . . Largest Inventory Capacity 25 | 8 10 10 25 15 20 20 20 20 20 20 20 20 20 20 20 20 20 20 20 20 20 20 20 25 25 25 25 25 25 25 25 25 Average Capacity 19 | 7 9 10 13 15 19 20 20 20 20 20 20 20 20 20 20 20 20 20 20 20 20 20 20 22 25 25 25 25 25 25 25 24 Most Carried 25 | 2 10 10 15 15 20 20 20 20 20 20 20 20 20 20 20 20 20 20 20 20 20 20 20 25 25 25 25 25 25 25 25 25 Average Carried 19 | 1 9 9 12 15 19 19 18 19 19 19 19 19 19 18 19 20 19 19 19 20 19 20 19 21 24 24 24 24 24 24 24 24 Final Capacity 25 | 8 10 10 15 15 20 20 20 20 20 20 20 20 20 20 20 20 20 20 20 20 20 20 20 25 25 25 25 25 25 25 25 5 Final Carried 25 | 2 10 10 15 15 20 20 20 20 20 19 20 20 20 17 20 20 19 20 20 20 20 20 20 24 25 25 25 25 24 23 25 4 Class Distribution -------------------- 19% | Gunner 17% | Scavenger-Gunner 13% | Scavenger-Skirmisher 11% | Skirmisher 10% | Messiah-Gunner 9% | Mutant 4% | Messiah-Skirmisher 4% | Tank Dominant Class ---------------- Mutant | -10/Materials Mutant | -10/Mines Scavenger-Gunner | -9/Materials Gunner | -9/Mines Gunner | -8/Materials Scavenger-Gunner | -8/Storage Gunner | -7/Factory Skirmisher | -7/Lower Caves Skirmisher | -7/Lower Caves Mutant | -7/Data Miner Skirmisher | -6/Proximity Caves Skirmisher | -6/Factory Mutant | -6/Waste Tank | -6/Factory Scavenger-Skirmisher | -6/Lower Caves Scavenger-Skirmisher | -6/Lower Caves Scavenger-Skirmisher | -6/Zion Skirmisher | -5/Proximity Caves Scavenger-Skirmisher | -5/Factory Messiah-Gunner | -5/Extension Messiah-Gunner | -5/Cetus Messiah-Gunner | -5/Archives Messiah-Gunner | -5/Hub_04(d) Messiah-Skirmisher | -4/Factory Scavenger-Gunner | -4/Upper Caves Scavenger-Gunner | -4/Upper Caves Scavenger-Mutant | -4/Zhirov Scavenger-Gunner | -3/Proximity Caves Messiah-Gunner | -3/Research Gunner | -3/Armory Infiltrator-Gunner | -3/Lab Infiltrator-Gunner | -2/Research Resources | -11 -10 -10 -9 -9 -8 -8 -7 -7 -7 -7 -6 -6 -6 -6 -6 -6 -6 -5 -5 -5 -5 -5 -5 -4 -4 -4 -4 -3 -3 -3 -3 -2 ----------- Run | Yrd Mat Min Mat Min Mat Sto Fac Low Low Dat Pro Fac Was Fac Low Low Zio Pro Fac Ext Cet Arc Hub Fac Upp Upp Zhi Pro Res Arm Lab Res Matter Collected 11127 | 311 120 125 756 66 595 500 1134 108 155 . 130 69 . 418 172 121 97 281 476 273 93 . 316 776 95 237 99 157 1124 1957 . 366 Remotely . | . . . . . . . . . . . . . . . . . . . . . . . . . . . . . . . . . Salvage Created 23840 | 132 680 368 1221 71 2274 1934 1994 . . . 61 70 . 795 236 38 . 162 576 474 436 . 1959 2178 . 424 99 234 2138 3583 . 1703 Parts 1116 | 9 35 21 87 2 104 70 97 . . . 2 6 . 60 6 3 . 5 20 23 18 . 82 88 . 8 2 9 98 170 . 91 Haulers Intercepted 34 | . 2 . 3 . 5 6 . . . . . . . 2 . . . . 1 . . . 6 6 . . . . 2 . . 1 Recyclers Shooed 17 | 1 . . 3 . 2 2 . . . . . . . 1 . . . . 2 . . . . 3 . . . . 2 . . 1 Parts Field Recycled . | . . . . . . . . . . . . . . . . . . . . . . . . . . . . . . . . . Retrieved Matter . | . . . . . . . . . . . . . . . . . . . . . . . . . . . . . . . . . Parts Self-Destructed 28 | . . . . . . . . . . . 1 . . . 6 1 1 8 . . . . . . . 6 2 3 . . . . Prevented 5 | . . . . . . . . . . . . . . . . . . 5 . . . . . . . . . . . . . . Parts Restored . | . . . . . . . . . . . . . . . . . . . . . . . . . . . . . . . . . Kills | -11 -10 -10 -9 -9 -8 -8 -7 -7 -7 -7 -6 -6 -6 -6 -6 -6 -6 -5 -5 -5 -5 -5 -5 -4 -4 -4 -4 -3 -3 -3 -3 -2 ------- Run | Yrd Mat Min Mat Min Mat Sto Fac Low Low Dat Pro Fac Was Fac Low Low Zio Pro Fac Ext Cet Arc Hub Fac Upp Upp Zhi Pro Res Arm Lab Res Combat Hostiles Destroyed 352 | . 12 12 30 1 46 30 39 . . . 1 1 . 11 1 3 . 6 8 8 6 . 21 22 . 5 . 1 21 49 . 18 Guns 175 | . 12 11 26 1 44 19 25 . . . . 1 . . . . . . . 1 1 . 5 3 . . . . 5 14 . 7 Cannons 96 | . . . 1 . . 10 5 . . . . . . 6 1 . . 1 5 3 4 . 9 9 . 1 . 1 12 20 . 8 AOE 45 | . . . 2 . . . 8 . . . . . . 5 . 3 . 4 1 3 . . 2 8 . 4 . . . 4 . 1 Classes Destroyed 23 | 2 4 1 3 . 3 . 4 . . . . . . . 1 . . . . 1 . . 1 . . . . . 1 2 . . Worker 34 | . 1 . 2 1 4 3 3 . . . . . . 1 . . . . 1 . . . 7 4 . . . . . . . 7 Builder 15 | . . . 2 . 2 . 2 . . . . . . 2 . . . . 1 . . . 1 . . . . . . . . 5 Tunneler 4 | 3 . . . . . . . . . . . . . 1 . . . . . . . . . . . . . . . . . . Hauler 34 | . 2 . 3 . 5 6 . . . . . . . 2 . . . . 1 . . . 6 6 . . . . 2 . . 1 Recycler 19 | 1 1 . . . 1 2 6 . . . . . . 1 . . . . . . . . . 3 . . . . 3 . . 1 Operator 8 | . . . . . . . 1 . . . . . . 1 . . . . 1 2 . . . 1 . . . . . 2 . . Drone 1 | . . . . . . . . . . . . . . . . . . . . . . . 1 . . . . . . . . . Watcher 19 | . 2 . 1 . 1 2 2 . . . . . . 1 . . . . . . 1 . 3 . . . . . 1 2 . 3 Swarmer 71 | . . 6 7 . 9 . 12 . . . . . . 6 . 3 . 4 . 1 . . . 8 . 4 . . . 7 . 4 Saboteur 2 | . . . . . . . . . . . . . . . . . . . . . . . . . . . . . . 1 . 1 Grunt 135 | . 12 6 13 1 24 24 15 . . . . . . . . . . 1 1 5 . . 12 5 . . . . 5 11 . . Brawler 3 | . . . . . . . 3 . . . . . . . . . . . . . . . . . . . . . . . . . Duelist 13 | . . . 2 . . . 2 . . . . . . . . . . . . 1 . . . . . . . . . 8 . . Protector 3 | . . . . . . . 1 . . . . . . . . . . . . . . . . . . . . . . 2 . . Sentry 48 | . . . 8 . 10 5 2 . . . 1 1 . 1 . . . 1 1 1 . . 2 1 . . . 1 5 7 . 1 Demolisher 1 | . . . . . . . . . . . . . . . . . . . . . . . . . . . . . . 1 . . Specialist 6 | . . . . . 2 . . . . . . . . . . . . . . . . . . . . . . . . 1 . 3 Hunter 17 | . . . . . 1 1 1 . . . . . . 2 1 . . . . . . . 4 2 . . . . 1 2 . 2 Programmer 45 | . . . . . . . 3 . . . . . . 2 . . . . 6 . . . 2 6 . 1 . . 9 9 . 7 Heavy 1 | . . . . . 1 . . . . . . . . . . . . . . . . . . . . . . . . . . . Behemoth 2 | . . . . . . . . . . . . . . . . . . . . . . . . . . . . . 1 1 . . Cetus Guard 6 | . . . . . . . . . . . . . . . . . . . . . 6 . . . . . . . . . . . Z-Heavy 1 | . . . . . . . . . . . . . . . . . . . . 1 . . . . . . . . . . . . Decomposer 1 | . . . . . . . . . . . . . . . 1 . . . . . . . . . . . . . . . . . Samaritan 7 | . . . . . . . . . . . . . . . 3 . . . . . . . . . . 1 . 3 . . . . Best Kill Streak 16 | 4 3 2 9 1 5 12 11 . . . 1 1 . 7 1 3 . 4 3 4 3 . 8 6 . 4 . 1 3 6 . 16 Combat Bots Only 9 | . 3 2 6 1 5 8 9 . . . 1 1 . 4 1 3 . 4 2 4 3 . 4 5 . 4 . 1 3 6 . 7 Max Kills in Single Turn 8 | 1 2 2 2 1 2 2 2 . . . 1 1 . 4 1 2 . 2 2 2 1 . 8 5 . 3 . 1 1 4 . 2 Gunslinging 1 | . . 1 . . 1 . . . . . . . . . . . . . . . . . . . . . . . . 1 . . Exploded 5 | . . . 2 . . . 2 . . . . . . 3 . 2 . 2 1 1 . . 2 5 . 3 . . . 4 . 1 Melee . | . . . . . . . . . . . . . . . . . . . . . . . . . . . . . . . . . Uniques/NPCs Destroyed . | . . . . . . . . . . . . . . . . . . . . . . . . . . . . . . . . . Combat | -11 -10 -10 -9 -9 -8 -8 -7 -7 -7 -7 -6 -6 -6 -6 -6 -6 -6 -5 -5 -5 -5 -5 -5 -4 -4 -4 -4 -3 -3 -3 -3 -2 -------- Run | Yrd Mat Min Mat Min Mat Sto Fac Low Low Dat Pro Fac Was Fac Low Low Zio Pro Fac Ext Cet Arc Hub Fac Upp Upp Zhi Pro Res Arm Lab Res Hostile Shots Fired 2140 | . 36 66 112 . 161 114 227 . . . 27 21 . 167 3 3 . 15 46 37 28 2 92 167 . 9 . 9 140 429 . 229 Missed 670 | . 11 18 38 . 37 38 68 . . . 9 11 . 57 1 1 . 5 21 7 10 1 27 47 . 3 . 4 43 135 . 78 Intercepted 2 | . . . . . . . . . . . . . . . . . . . . . . . . . . . . . . 2 . . Deflected 5 | . . . . . . . . . . . . . . . . . . . . . . . . . . . . . . 5 . . Hits 1470 | . 25 48 74 . 124 76 159 . . . 18 10 . 110 2 2 . 10 25 30 18 1 65 120 . 6 . 5 97 294 . 151 Melee 22 | . . . 3 . . . 4 . . . . . . . . . . . . . . . . . . . . . . 14 . 1 Projectile 1448 | . 25 48 71 . 124 76 155 . . . 18 10 . 110 2 2 . 10 25 30 18 1 65 120 . 6 . 5 97 280 . 150 AOE 3 | . . . . . . . . . . . . . . . . . . . . . . . . 2 . . . . . 1 . . Critical Strikes 63 | . . 2 4 . 3 2 4 . . . . . . 2 . . . 1 5 2 3 . 3 5 . 1 . . 6 12 . 8 Actively Blocked 21 | . . . . . . . . . . . . . . . . . . . . . 1 . . 1 . . . . 3 9 . 7 Part Disruptions 6 | . . . . . . . . . . . . . . . . . . . . . . . 1 2 . 1 . . 2 . . . Damage Taken 26859 | . 334 543 1135 . 1983 1171 2510 11 . . 144 49 590 1350 40 36 . 190 418 621 617 25 1295 2321 . 93 . 117 2194 5659 . 3413 Core 2653 | . 82 68 273 . 281 142 268 . . . 17 5 120 177 . . . 51 19 69 . . 73 144 . . . . 33 166 . 665 Absorbed by Shields 3548 | . . . . . . 20 58 . . . . 11 . 112 . . . . 96 . . . . 335 . 26 . . 391 1235 . 1264 Redirected to Shielding 555 | . . . . . . . . . . . . . . . . . . . . 108 30 . . 134 . . . . 149 134 . . Regen/Repaired (Parts) 1233 | . . . . . . . . . . . . . . . . . 1122 . . . . . . . . . . . . 111 . . Core Remaining (%) 62 | 100 . 40 . 31 . 23 . . . . 59 . . . . . . 58 . . . . 83 . . . . 87 . . 77 . Volleys Fired 1061 | 12 35 42 74 3 102 67 86 5 . . 3 2 . 40 12 2 1 7 57 18 19 5 61 63 6 32 . 17 107 120 3 60 Largest 3 | 2 2 2 3 3 3 3 3 3 . . 3 3 . 3 3 1 1 3 3 3 3 3 3 3 1 3 . 2 3 3 1 3 Hottest 308 | 70 112 112 195 189 195 216 205 166 . . 166 166 . 160 160 36 35 145 105 130 130 130 196 205 35 205 . 170 308 273 113 280 Shots Fired 2567 | 24 72 82 195 10 299 197 232 12 3 . 11 6 . 80 35 5 1 15 108 52 55 7 124 159 5 45 . 34 216 317 3 163 Gun 1418 | 24 72 82 192 10 298 141 191 10 3 . 11 6 . 9 . . . 3 . 15 19 5 19 49 . 5 . 16 60 108 . 70 Cannon 1098 | . . . 1 . . 54 28 . . . . . . 67 35 3 1 9 108 34 36 2 98 106 5 35 . 18 156 206 3 93 Launcher 50 | . . . 2 . 1 2 13 2 . . . . . 4 . 2 . 3 . 3 . . 7 3 . 5 . . . 3 . . Special 1 | . . . . . . . . . . . . . . . . . . . . . . . . 1 . . . . . . . . Kinetic 487 | 12 . . 81 . 15 26 136 3 . . 3 2 . 9 . . . . . . . . . . . . . . 15 115 . 70 Thermal 1810 | 12 72 82 86 10 283 169 75 7 3 . 8 4 . 67 35 3 1 12 108 34 36 2 39 155 5 40 . 34 201 131 3 93 Explosive 50 | . . . 2 . 1 2 13 2 . . . . . 4 . 2 . 3 . 3 . . 7 3 . 5 . . . 3 . . Electromagnetic 168 | . . . 26 . . . 8 . . . . . . . . . . . . . . . 66 . . . . . . 68 . . Phasic 51 | . . . . . . . . . . . . . . . . . . . . 15 19 5 12 . . . . . . . . . Robot Hit Streak 37 | 2 11 15 13 6 37 16 24 . . . 15 17 . 8 7 . . 9 5 6 8 15 23 19 . 6 . 8 22 20 . 11 Robot Miss Streak 8 | 4 6 8 6 1 4 5 6 . . . . 1 . 8 1 1 . 2 7 5 3 . 3 6 . 3 . 1 1 5 . 5 Penetration Max 4 | . . . . . . . . . . . . . . . . . . . . . . . . . . . . . . 2 . 4 Secondary Targets 23 | . 1 4 3 . 7 . 6 . . . . . . . . . . . . . . . . . . . . . . 2 . . Max Gunslinging Chain 1 | . 1 1 1 . 1 . 1 . . . . . . . . . . . . . . . . . . . . . . 1 . . Shots Hit Robots 1536 | 11 46 37 139 6 228 133 150 . . . 9 4 . 32 15 . . 9 31 25 36 7 78 99 . 16 1 13 126 190 . 95 Core Hits 916 | 5 20 15 79 3 162 80 111 2 . . 2 3 . 29 6 4 . 6 11 14 16 3 60 55 . 8 1 9 54 100 . 58 Critical Kills 41 | . . . . . . . 1 . . . . . . . . . . 1 1 1 1 . . 1 . . . . 2 18 . 15 Critical Parts Destroyed 34 | . . . . . . . 2 . . . . . . . . . . . . . . . . . . . . . . 12 . 20 Critical Strikes 104 | . 1 . 2 . 8 3 5 . . . 1 . . . . . . 1 1 5 1 . 3 1 . . . . 3 34 . 35 Burn 17 | . 1 . 2 . 8 3 2 . . . 1 . . . . . . . . . . . . . . . . . . . . . Meltdown 12 | . . . . . . . . . . . . . . . . . . 1 1 1 1 . . 1 . . . . 2 3 . 2 Destroy 65 | . . . . . . . 3 . . . . . . . . . . . . . . . . . . . . . . 29 . 33 Blast 2 | . . . . . . . . . . . . . . . . . . . . . . . . . . . . . 1 1 . . Corrupt 4 | . . . . . . . . . . . . . . . . . . . . . . . 3 . . . . . . 1 . . Intensify 4 | . . . . . . . . . . . . . . . . . . . . 4 . . . . . . . . . . . . Melee Attacks 37 | . . . . . . . . . . . . 2 27 . . . . . . . . . 3 . . . 1 . 3 1 . . Impact . | . . . . . . . . . . . . . . . . . . . . . . . . . . . . . . . . . Slashing . | . . . . . . . . . . . . . . . . . . . . . . . . . . . . . . . . . Piercing 37 | . . . . . . . . . . . . 2 27 . . . . . . . . . 3 . . . 1 . 3 1 . . Sneak Attacks . | . . . . . . . . . . . . . . . . . . . . . . . . . . . . . . . . . Combat Hostiles . | . . . . . . . . . . . . . . . . . . . . . . . . . . . . . . . . . Follow-up Attacks . | . . . . . . . . . . . . . . . . . . . . . . . . . . . . . . . . . Damage Inflicted 50906 | 156 809 636 2455 110 4213 3509 4057 2 . . 176 77 . 1723 488 221 . 955 2129 1350 1277 251 5328 3795 . 984 66 428 4512 6938 . 4261 Guns 17892 | 156 803 620 2272 90 4011 1935 2315 . . . 176 77 . 110 . . . 66 . 297 396 180 445 1045 . 63 . 209 1189 591 . 846 Cannons 23475 | . . . 19 . . 1453 798 . . . . . . 1024 488 . . 162 1274 520 881 71 2375 1962 . 493 . 219 3323 5414 . 2999 Explosions 8373 | . . . 126 . 41 36 891 2 . . . . . 589 . 221 . 727 799 502 . . 2420 686 . 407 . . . 926 . . Melee 98 | . . . . . . . . . . . . . . . . . . . . . . . 32 . . . 66 . . . . . Ramming 1068 | . 6 16 38 20 161 85 53 . . . . . . . . . . . 56 31 . . 56 102 . 21 . . . 7 . 416 Kinetic 5161 | 81 . . 1089 . 173 230 1498 . . . 62 . . 110 . . . . . . . . . . . . . . 374 698 . 846 Thermal 31480 | 75 803 620 827 90 3838 3158 1507 . . . 114 77 . 1024 488 . . 228 1519 520 881 71 974 3007 . 556 . 428 4138 3538 . 2999 Explosive 6645 | . . . 126 . 41 36 866 2 . . . . . 589 . 221 . 727 554 502 . . 986 686 . 407 . . . 902 . . Electromagnetic 5347 | . . . 375 . . . 133 . . . . . . . . . . . . . . . 3046 . . . . . . 1793 . . Impact . | . . . . . . . . . . . . . . . . . . . . . . . . . . . . . . . . . Slashing . | . . . . . . . . . . . . . . . . . . . . . . . . . . . . . . . . . Piercing 98 | . . . . . . . . . . . . . . . . . . . . . . . 32 . . . 66 . . . . . Phasic 1107 | . . . . . . . . . . . . . . . . . . . . 297 396 180 234 . . . . . . . . . Highest Corruption 18 | . 4 4 7 7 2 2 8 8 8 8 8 1 5 6 6 6 6 4 2 2 2 2 5 18 9 11 11 11 5 13 13 . Average Corruption 5 | . 3 4 6 7 2 2 5 8 8 8 8 1 2 5 6 6 6 4 2 2 2 2 3 12 9 9 11 11 3 9 13 . Corruption Purged 10 | . . . . . . . . . . . . . . . . . . . . . . . . 10 . . . . . . . . Corruption Blocked 17 | . . . . . . . . . . . . . . . . . . . . . . . . . . . . . . . . 17 Effects 617 | . 15 29 39 25 22 18 29 28 28 2 17 . 3 25 30 17 . 10 12 12 8 1 13 25 27 29 10 21 32 77 13 . Message Errors 137 | . 6 4 5 5 4 4 9 9 4 1 2 . 1 3 6 4 . 3 3 4 2 . 4 4 10 7 4 5 7 13 4 . Matter Fused 139 | . 2 5 8 5 7 3 5 3 5 . 7 . . 5 9 6 . 2 2 2 3 . 3 7 9 6 1 5 7 19 3 . Heat Flow Errors 76 | . 3 6 5 5 4 2 3 5 3 . 1 . . 4 5 1 . . 2 1 . 1 2 2 3 3 1 1 2 9 2 . Energy Discharges 74 | . . 6 4 2 2 4 2 5 5 1 1 . 1 2 3 1 . 1 1 4 . . 1 3 2 4 2 2 2 12 1 . Parts Rejected 4 | . . . 1 . 1 . . . . . . . . 2 . . . . . . . . . . . . . . . . . . Parts Fused 6 | . . . . . . . . . 1 . 1 . . 1 . . . . 1 . . . . . . . . . 1 1 . . Data Loss (minor) 68 | . 1 3 9 4 2 1 2 2 4 . 1 . . 4 5 2 . 1 1 . 1 . 1 3 1 4 2 1 4 8 1 . Data Loss (major) 32 | . 1 1 1 2 1 1 2 . 2 . 2 . 1 3 . . . 1 . 1 . . . . 1 3 . 1 2 5 1 . Misfires 37 | . 2 3 4 1 . 1 2 2 3 . 2 . . . 1 3 . 1 1 . . . 1 1 . 2 . 3 3 1 . . Alerts 20 | . . 1 2 1 . 1 2 1 1 . . . . . 1 . . 1 . . 2 . . 2 . . . . 1 3 1 . Misdirections 2 | . . . . . . . . . . . . . . . . . . . . . . . . . . . . . . 2 . . Weapon Failures 22 | . . . . . 1 1 2 1 . . . . . 1 . . . . 1 . . . 1 3 1 . . 3 3 4 . . Overload Shots 1 | . . . . . . . . . . . . . . . . . . . 1 . . . . . . . . . . . . . Overflow Damage 1650 | . . . 39 . . 20 13 . . . . . . 45 183 3 . 96 294 26 . . 262 68 . 128 . . 24 206 . 243 Projectiles 803 | . . . . . . 17 . . . . . . . 4 183 . . . 78 17 . . 119 30 . 65 . . 24 87 . 179 Explosions 747 | . . . 39 . . . 13 . . . . . . 41 . 3 . 96 215 9 . . 136 32 . 44 . . . 119 . . Melee 100 | . . . . . . 3 . . . . . . . . . . . . 1 . . . 7 6 . 19 . . . . . 64 Knockbacks 8 | . . . . 1 . . 1 . . . . . . . . . . . 1 . . . 1 . . . . . 1 1 . 2 Impact 5 | . . . . 1 . . 1 . . . . . . . . . . . 1 . . . 1 . . . . . . . . 1 Kinetic 2 | . . . . . . . . . . . . . . . . . . . . . . . . . . . . . 1 1 . . Secondary 1 | . . . . . . . . . . . . . . . . . . . . . . . . . . . . . . . . 1 Self-Inflicted Damage 572 | . . . 194 . . . 224 11 . . . . . 94 . . . . . . . . . . . . . . . 49 . . Shots 15 | . . . 2 . . . 7 1 . . . . . 4 . . . . . . . . . . . . . . . 1 . . Rammed 50 | . 1 5 12 2 18 8 4 . . . . . . . . . . . . . . . . . . . . . . . . . Targets Rammed 85 | . 2 5 12 2 20 9 5 . . . . . . . . . . . 3 1 . . 3 5 . 1 . . . 1 . 16 Kicked 30 | . . . . . . . . . . . . . . . . . . . 3 1 . . 3 5 . 1 . . . 1 . 16 Crushed 5 | . 1 . . . 2 1 1 . . . . . . . . . . . . . . . . . . . . . . . . . Highest Temperature 607 | 108 375 404 484 223 607 304 339 246 238 . 125 76 . 360 366 128 . 81 332 170 265 125 397 324 63 . . . 6 67 . . Average Temperature 110 | 55 98 122 80 81 149 89 130 107 101 . 73 43 . 92 109 53 . 36 130 48 80 45 145 91 32 . . . 4 44 . . Received Heat Transfer 4576 | . 183 240 429 . 738 645 681 . . . 48 4 . 18 . . . 18 57 189 18 . 430 139 . . . 9 137 384 . 209 Effects 47 | . 1 7 2 . 17 . 1 . . . . . . 2 4 . . . 3 . . . 9 1 . . . . . . . . Shutdowns 8 | . . . 1 . 4 . . . . . . . . 1 1 . . . 1 . . . . . . . . . . . . . Energy Bleed 10 | . . 3 . . 1 . 1 . . . . . . . 1 . . . 1 . . . 2 1 . . . . . . . . Interference 12 | . . 1 . . 2 . . . . . . . . . 2 . . . . . . . 7 . . . . . . . . . Matter Decay 5 | . 1 . . . 3 . . . . . . . . . . . . . 1 . . . . . . . . . . . . . Short Circuit 5 | . . 3 1 . 1 . . . . . . . . . . . . . . . . . . . . . . . . . . . Damage (minor) 1 | . . . . . . . . . . . . . . 1 . . . . . . . . . . . . . . . . . . Damage (major) 5 | . . . . . 5 . . . . . . . . . . . . . . . . . . . . . . . . . . . Damage (core) 1 | . . . . . 1 . . . . . . . . . . . . . . . . . . . . . . . . . . . Siege Activations 1 | . . . . . . . . . . . . . . . . . . . . . . . . . . . . . . . . 1 Total Turns 1 | . . . . . . . . . . . . . . . . . . . . . . . . . . . . . . . . 1 Longest Duration 1 | . . . . . . . . . . . . . . . . . . . . . . . . . . . . . . . . 1 Martial Activations . | . . . . . . . . . . . . . . . . . . . . . . . . . . . . . . . . . Shielding Activations 2 | . . . . . . . . . . . . . . . . . . . . . . . . 1 . . . . . 1 . . Total Turns 33 | . . . . . . . . . . . . . . . . . . . . . . . . 7 . . . . . 26 . . Longest Duration 26 | . . . . . . . . . . . . . . . . . . . . . . . . 7 . . . . . 26 . . Robots Disrupted . | . . . . . . . . . . . . . . . . . . . . . . . . . . . . . . . . . Combat Hostiles . | . . . . . . . . . . . . . . . . . . . . . . . . . . . . . . . . . Robots Corrupted 20 | . . . . . . . 1 . . . . . . . . . . . 1 . . . 6 1 . 1 . . . 8 . 2 Combat Hostiles 14 | . . . . . . . 1 . . . . . . . . . . . . . . . 5 . . . . . . 8 . . Parts Fried 52 | . . . 1 . . . . . . . . . . . . . . . 2 . . . 17 3 . 1 . . . 26 . 2 Impact Corruptions 17 | . . . . . . 1 . . . . . . . . . . . . 1 . . . 1 1 . 7 . . . . . 6 Robots Melted 21 | . . 1 1 . 2 1 . . . . 1 . . . . . . 1 2 1 1 . . 2 . . . . 3 3 . 2 Combat Hostiles 20 | . . 1 1 . 2 1 . . . . 1 . . . . . . 1 2 1 1 . . 2 . . . . 3 2 . 2 Parts Melted 124 | . 3 1 1 . 19 7 2 . . . 3 . . 2 3 . . 4 8 3 2 . 2 15 . 2 . 2 19 21 . 5 Heat Transferred 43937 | 222 1813 1309 1753 185 7936 5082 2483 . . . 296 148 . 1396 698 . . 400 1800 800 1350 100 1322 3455 . 761 . 481 4806 2899 . 2442 Parts Sabotaged 2 | . . . . . . . . . . . . . . . . . . . . . . . . . . . . . . 2 . . Parts Stolen . | . . . . . . . . . . . . . . . . . . . . . . . . . . . . . . . . . Parts Stripped . | . . . . . . . . . . . . . . . . . . . . . . . . . . . . . . . . . Power Chain Reactions 4 | . . . . . . . 1 . . . . . . . . . . . . . . . 3 . . . . . . . . . Alert | -11 -10 -10 -9 -9 -8 -8 -7 -7 -7 -7 -6 -6 -6 -6 -6 -6 -6 -5 -5 -5 -5 -5 -5 -4 -4 -4 -4 -3 -3 -3 -3 -2 ------- Run | Yrd Mat Min Mat Min Mat Sto Fac Low Low Dat Pro Fac Was Fac Low Low Zio Pro Fac Ext Cet Arc Hub Fac Upp Upp Zhi Pro Res Arm Lab Res Maximum Alert Level 5 | . 1 . 2 1 2 2 3 . . . . . . . . . . . 1 3 2 2 4 3 . . . . 1 5 . 2 Low Security (%) 42 | 100 81 100 40 92 32 4 32 . . . . 100 100 100 . . . . 70 18 . . 15 . . . . . 38 10 . 64 Level 1 22 | . 18 . 37 7 34 22 18 . . . . . . . . . . . 29 33 . 77 13 . . . . . 61 18 . 14 Level 2 21 | . . . 21 . 32 73 26 . . . . . . . . . . . . 4 100 22 70 44 . . . . . 13 . 20 Level 3 8 | . . . . . . . 21 . . . . . . . . . . . . 43 . . . 55 . . . . . 10 . . Level 4 2 | . . . . . . . . . . . . . . . . . . . . . . . 1 . . . . . . 26 . . Level 5 1 | . . . . . . . . . . . . . . . . . . . . . . . . . . . . . . 20 . . High Security . | . . . . . . . . . . . . . . . . . . . . . . . . . . . . . . . . . Max Security . | . . . . . . . . . . . . . . . . . . . . . . . . . . . . . . . . . Peak Influence 1721 | 10 254 97 582 225 565 670 761 . . . . 34 2 199 . . . . 312 928 681 415 1250 939 . . . . 394 1721 . 478 Initial 612 | . . 22 . 225 . 236 186 . . . . . . . . . . . . 115 483 248 123 612 . . . . . 203 . . Average 353 | 1 129 23 254 69 289 442 399 . . . . 8 . 60 . . . . 157 521 589 370 498 729 . . . . 225 946 . 171 Influence Increases 16263 | 20 476 305 1122 40 1558 982 1240 . . . 20 46 8 453 30 70 . 420 774 1171 398 177 1687 957 . 125 5 20 981 2462 . 716 Destroy 0b10 Robot/C 8580 | . 240 240 600 20 980 600 760 . . . 20 20 . 220 20 60 . 220 320 580 160 80 520 560 . 100 . 20 540 1340 . 360 Destroy 0b10 Robot/NC 765 | 20 30 . 40 5 70 65 75 . . . . . . 45 . . . . 25 20 10 . 90 90 . 15 5 . 40 35 . 85 Destroy Leader 1866 | . 48 50 168 10 254 146 164 . . . . 10 . 56 10 10 . 30 94 82 . . 124 108 . 10 . . 146 270 . 76 Allied During Kill 1446 | . . . . 5 19 . . . . . . . . . . . . 170 60 397 166 80 161 32 . . . . 44 312 . . Successful Hack 340 | . 52 . 98 . 44 25 35 . . . . 14 . 7 . . . . . . 9 . . 14 . . . . 24 18 . . Select Force Hacks 240 | . 60 . 60 . 60 60 . . . . . . . . . . . . . . . . . . . . . . . . . . Disable Machine 975 | . 15 . 90 . 30 30 75 . . . . . . 60 . . . . 75 . 15 15 360 . . . . . 30 180 . . Destroy Structure 1556 | . 1 . 51 . 11 26 71 . . . . 2 8 35 . . . . 200 92 38 2 402 138 . . . . 142 262 . 75 Partial Spotted 15 | . . . . . . . 15 . . . . . . . . . . . . . . . . . . . . . . . . . Lose Combat Pursuer 480 | . 30 15 15 . 90 30 45 . . . . . . 30 . . . . . . . . 30 15 . . . . 15 45 . 120 Influence Decreases 15869 | 20 418 363 544 618 997 1133 926 643 81 . 20 46 8 269 214 70 . 420 538 543 641 443 792 1272 665 341 59 20 592 1160 1691 322 Entered New Map 5368 | . . 36 . 353 . 325 224 269 17 . . . . . 69 . . . . 121 381 373 232 638 347 52 54 . . 186 1691 . Time Decay 8254 | 20 418 297 484 265 587 568 542 374 64 . 20 46 7 233 145 70 . 320 448 342 160 70 270 574 318 289 5 20 472 614 . 212 Lost Part 787 | . . 30 60 . 70 90 160 . . . . . 1 36 . . . . . . . . 30 60 . . . . 60 80 . 110 Lost Ally 1010 | . . . . . 40 . . . . . . . . . . . . 100 90 80 100 . 260 . . . . . 60 280 . . Purge Threat 450 | . . . . . 300 150 . . . . . . . . . . . . . . . . . . . . . . . . . . Squads Dispatched 99 | . 2 . 4 . 10 6 12 . . . . 1 . 5 . . . . 12 3 . . 8 8 . . . . 7 14 . 7 Investigation 19 | . 2 . 3 . 3 3 3 . . . . 1 . . . . . . 1 . . . . 2 . . . . . 1 . . Extermination 27 | . . . . . . . 3 . . . . . . 2 . . . . 4 . . . 1 5 . . . . 5 4 . 3 Reinforcement 36 | . . . . . 5 3 1 . . . . . . 3 . . . . 1 3 . . 7 1 . . . . 2 6 . 4 Assault 6 | . . . 1 . 1 . 1 . . . . . . . . . . . . . . . . . . . . . . 3 . . Garrison 11 | . . . . . 1 . 4 . . . . . . . . . . . 6 . . . . . . . . . . . . . Intercept . | . . . . . . . . . . . . . . . . . . . . . . . . . . . . . . . . . Searches Triggered . | . . . . . . . . . . . . . . . . . . . . . . . . . . . . . . . . . Data Miner Redirects 3 | . . . . . . . . . . . . . . . . . . . . . . . . 1 . . . . . 2 . . Construction Impeded 6 | . . . . . 1 . 1 . . . . . . 1 . . . . . 1 . . 1 1 . . . . . . . . Haulers Reinforced 7 | . . . . . . . . . . . . . . 1 . . . . 1 . . . 3 . . . . . 1 . . 1 Active Scanning Responses . | . . . . . . . . . . . . . . . . . . . . . . . . . . . . . . . . . Cargo Convoy Interrupts 2 | . . . . . . . . . . . . . . 1 . . . . . . . . . . . . . . . . . 1 Stealth | -11 -10 -10 -9 -9 -8 -8 -7 -7 -7 -7 -6 -6 -6 -6 -6 -6 -6 -5 -5 -5 -5 -5 -5 -4 -4 -4 -4 -3 -3 -3 -3 -2 --------- Run | Yrd Mat Min Mat Min Mat Sto Fac Low Low Dat Pro Fac Was Fac Low Low Zio Pro Fac Ext Cet Arc Hub Fac Upp Upp Zhi Pro Res Arm Lab Res Distress Signals 38 | . 1 . 5 . 8 3 2 . . . . . . . . . . . . 3 2 . 5 3 . . . . 2 4 . . Communications Jammed 117 | . . . . . . . . . . . . . . . . . . . . . . . . . . . . . 17 19 . 81 Distress Signals 103 | . . . . . . . . . . . . . . . . . . . . . . . . . . . . . 8 19 . 76 Times Spotted 586 | . 21 13 49 1 64 36 47 . . . 1 1 12 25 1 3 . 10 11 23 11 3 36 44 . 2 . 4 31 87 . 50 Peak Tracking Total 14 | . 4 3 5 . 7 6 6 . . . 1 1 6 8 1 3 . 5 2 5 5 1 10 5 . 1 . 4 4 10 . 14 Tactical Retreats 29 | . 1 1 1 . 3 2 3 . . . . . 2 2 . . . . . . . . 1 1 . . . . 1 3 . 8 Traps | -11 -10 -10 -9 -9 -8 -8 -7 -7 -7 -7 -6 -6 -6 -6 -6 -6 -6 -5 -5 -5 -5 -5 -5 -4 -4 -4 -4 -3 -3 -3 -3 -2 ------- Run | Yrd Mat Min Mat Min Mat Sto Fac Low Low Dat Pro Fac Was Fac Low Low Zio Pro Fac Ext Cet Arc Hub Fac Upp Upp Zhi Pro Res Arm Lab Res Traps Triggered 16 | . 3 . . . 1 . 2 . . . . 2 . 1 . . . . . . . . . 3 . . . . 4 . . . Indirectly 1 | . . . . . . . 1 . . . . . . . . . . . . . . . . . . . . . . . . . Trap Hack Attempts . | . . . . . . . . . . . . . . . . . . . . . . . . . . . . . . . . . Triggered . | . . . . . . . . . . . . . . . . . . . . . . . . . . . . . . . . . Disarmed . | . . . . . . . . . . . . . . . . . . . . . . . . . . . . . . . . . Reprogrammed . | . . . . . . . . . . . . . . . . . . . . . . . . . . . . . . . . . Reused . | . . . . . . . . . . . . . . . . . . . . . . . . . . . . . . . . . Traps Extracted . | . . . . . . . . . . . . . . . . . . . . . . . . . . . . . . . . . Installed . | . . . . . . . . . . . . . . . . . . . . . . . . . . . . . . . . . Triggered . | . . . . . . . . . . . . . . . . . . . . . . . . . . . . . . . . . Machines | -11 -10 -10 -9 -9 -8 -8 -7 -7 -7 -7 -6 -6 -6 -6 -6 -6 -6 -5 -5 -5 -5 -5 -5 -4 -4 -4 -4 -3 -3 -3 -3 -2 ---------- Run | Yrd Mat Min Mat Min Mat Sto Fac Low Low Dat Pro Fac Was Fac Low Low Zio Pro Fac Ext Cet Arc Hub Fac Upp Upp Zhi Pro Res Arm Lab Res Machines Disabled 70 | . 1 . 6 . 2 2 5 1 . . . . . 4 . . . 1 5 2 1 1 24 . . . . . 2 12 1 . Max in Single Turn 17 | . 1 . 3 . 1 1 2 1 . . . . . 2 . . . 1 2 1 1 . 17 . . . . . 1 1 1 . Garrison Access 4 | . . . . . 1 . . . . . . 1 . . . . . . 1 . . . . . . . . . 1 . . . Network Hub 1 | . . . . . . . . . . . . . . . . . . . . . . . 1 . . . . . . . . . Energy Cycler 3 | . . . . . . . . . . . . . . . . . . . . 2 . . . . . . . . . 1 . . Machines Repaired . | . . . . . . . . . . . . . . . . . . . . . . . . . . . . . . . . . Machines Dismantled . | . . . . . . . . . . . . . . . . . . . . . . . . . . . . . . . . . Machines Sabotaged . | . . . . . . . . . . . . . . . . . . . . . . . . . . . . . . . . . Overloaded Fab Kills . | . . . . . . . . . . . . . . . . . . . . . . . . . . . . . . . . . Hacking | -11 -10 -10 -9 -9 -8 -8 -7 -7 -7 -7 -6 -6 -6 -6 -6 -6 -6 -5 -5 -5 -5 -5 -5 -4 -4 -4 -4 -3 -3 -3 -3 -2 --------- Run | Yrd Mat Min Mat Min Mat Sto Fac Low Low Dat Pro Fac Was Fac Low Low Zio Pro Fac Ext Cet Arc Hub Fac Upp Upp Zhi Pro Res Arm Lab Res Machines Accessed 104 | . 10 . 15 . 15 15 10 1 2 3 . 3 . 7 1 . . . 5 . 1 . . 4 . . 4 . 5 3 . . Terminals 50 | . 8 . 12 . 11 13 2 . 1 . . 1 . 1 . . . . . . 1 . . . . . . . . . . . Fabricators 10 | . . . . . . . 3 . . . . 1 . 1 . . . . . . . . . 3 . . . . 1 1 . . Repair Stations 2 | . . . . . . . . . . . . . . . . . . . . . . . . . . . . . . 2 . . Recycling Units 17 | . 2 . 2 . 2 2 1 . . . . . . 4 . . . . 1 . . . . 1 . . . . 2 . . . Scanalyzers 6 | . . . 1 . 1 . 1 . . . . . . 1 . . . . 1 . . . . . . . . . 1 . . . Garrison Access 9 | . . . . . 1 . 3 . . . . 1 . . . . . . 3 . . . . . . . . . 1 . . . Total Hacks 326 | . 38 . 54 . 51 37 25 1 3 28 . 6 . 14 5 . . . 8 . 3 . . 13 . . 15 . 9 16 . . Successful 198 | . 24 . 34 . 32 17 7 1 3 28 . 3 . 5 5 . . . 2 . 1 . . 5 . . 15 . 4 12 . . Failed 126 | . 13 . 20 . 18 20 18 . . . . 3 . 9 . . . . 6 . 2 . . 8 . . . . 5 4 . . Catastrophic 25 | . 1 . 3 . 4 1 3 . . . . . . 4 . . . . 2 . 1 . . 2 . . . . 2 2 . . Database Lockouts 2 | . 1 . . . 1 . . . . . . . . . . . . . . . . . . . . . . . . . . . Manual 253 | . 30 . 44 . 26 18 10 . . . . 4 . 5 . . . . 27 24 1 . 2 25 . 1 . . 14 22 . . Terminals 165 | . 34 . 46 . 37 34 5 . 2 . . 2 . 2 . . . . . . 3 . . . . . . . . . . . Fabricators 40 | . . . . . . . 9 . . . . 2 . 6 . . . . . . . . . 11 . . . . 1 11 . . Repair Stations 5 | . . . . . . . . . . . . . . . . . . . . . . . . . . . . . . 5 . . Recycling Units 25 | . 4 . 3 . 4 3 1 . . . . . . 5 . . . . 1 . . . . 2 . . . . 2 . . . Scanalyzers 22 | . . . 5 . 7 . 2 . . . . . . 1 . . . . 2 . . . . . . . . . 5 . . . Garrison Access 19 | . . . . . 3 . 8 . . . . 2 . . . . . . 5 . . . . . . . . . 1 . . . Terminal Hacks 89 | . 10 . 8 . 8 10 . 1 3 28 . . . . 5 . . . . . 1 . . . . . 15 . . . . . Record 18 | . . . . . . . . . 2 6 . . . . 5 . . . . . . . . . . . 5 . . . . . Part Schematic 14 | . . . . . . . . . . 11 . . . . . . . . . . . . . . . . 3 . . . . . Robot Schematic 8 | . . . . . . . . . . 8 . . . . . . . . . . . . . . . . . . . . . . Robot Analysis 8 | . 4 . 1 . . . . . . . . . . . . . . . . . . . . . . . 3 . . . . . Prototype ID Bank 14 | . 2 . 4 . 1 . . . . 3 . . . . . . . . . . . . . . . . 4 . . . . . Open Door 11 | . . . . . . 8 . 1 1 . . . . . . . . . . . 1 . . . . . . . . . . . Branch Access Points 3 | . 1 . 1 . 1 . . . . . . . . . . . . . . . . . . . . . . . . . . . Terminal Index 2 | . . . 1 . 1 . . . . . . . . . . . . . . . . . . . . . . . . . . . Alert Level 2 | . . . . . 1 1 . . . . . . . . . . . . . . . . . . . . . . . . . . Unreport Threat 3 | . . . . . 2 1 . . . . . . . . . . . . . . . . . . . . . . . . . . Locate Traps 1 | . 1 . . . . . . . . . . . . . . . . . . . . . . . . . . . . . . . Maintenance Status 1 | . 1 . . . . . . . . . . . . . . . . . . . . . . . . . . . . . . . Hauler Manifests 4 | . 1 . 1 . 2 . . . . . . . . . . . . . . . . . . . . . . . . . . . Fabricator Hacks 19 | . . . . . . . 3 . . . . . . 2 . . . . . . . . . 4 . . . . . 10 . . Network Status 1 | . . . . . . . 1 . . . . . . . . . . . . . . . . . . . . . . . . . Load Schematic 9 | . . . . . . . 1 . . . . . . 1 . . . . . . . . . 2 . . . . . 5 . . Build 9 | . . . . . . . 1 . . . . . . 1 . . . . . . . . . 2 . . . . . 5 . . Repair Station Hacks 1 | . . . . . . . . . . . . . . . . . . . . . . . . . . . . . . 1 . . Scan Component 1 | . . . . . . . . . . . . . . . . . . . . . . . . . . . . . . 1 . . Recycling Unit Hacks 8 | . 1 . 1 . 1 . 1 . . . . . . 2 . . . . . . . . . . . . . . 2 . . . Retrieve Components 8 | . 1 . 1 . 1 . 1 . . . . . . 2 . . . . . . . . . . . . . . 2 . . . Scanalyzer 13 | . . . 5 . 6 . . . . . . . . . . . . . 1 . . . . . . . . . 1 . . . Insert Component 4 | . . . 2 . 2 . . . . . . . . . . . . . . . . . . . . . . . . . . . Analyze 5 | . . . 3 . 2 . . . . . . . . . . . . . . . . . . . . . . . . . . . Retrieve Study 4 | . . . . . 2 . . . . . . . . . . . . . 1 . . . . . . . . . 1 . . . Garrison Access Hacks 4 | . . . . . 1 . . . . . . 1 . . . . . . 1 . . . . . . . . . 1 . . . Seal Access 4 | . . . . . 1 . . . . . . 1 . . . . . . 1 . . . . . . . . . 1 . . . Unauthorized Hacks 64 | . 13 . 20 . 16 7 3 . . . . 2 . 1 . . . . . . . . . 1 . . . . . 1 . . Terminals 50 | . 11 . 18 . 14 5 1 . . . . 1 . . . . . . . . . . . . . . . . . . . . Track 4 | . . . 1 . 3 . . . . . . . . . . . . . . . . . . . . . . . . . . . Botnet 20 | . 5 . 6 . 5 2 1 . . . . 1 . . . . . . . . . . . . . . . . . . . . Operators 1 | . . . 1 . . . . . . . . . . . . . . . . . . . . . . . . . . . . . Skim 25 | . 6 . 10 . 6 3 . . . . . . . . . . . . . . . . . . . . . . . . . . Fabricators 5 | . . . . . . . 2 . . . . 1 . 1 . . . . . . . . . 1 . . . . . . . . Prioritize 2 | . . . . . . . 1 . . . . . . 1 . . . . . . . . . . . . . . . . . . Haulers 1 | . . . . . . . 1 . . . . . . . . . . . . . . . . . . . . . . . . . Recompile 2 | . . . . . . . . . . . . 1 . . . . . . . . . . . 1 . . . . . . . . Repair Stations 1 | . . . . . . . . . . . . . . . . . . . . . . . . . . . . . . 1 . . Patch 1 | . . . . . . . . . . . . . . . . . . . . . . . . . . . . . . 1 . . Recycling Units 8 | . 2 . 2 . 2 2 . . . . . . . . . . . . . . . . . . . . . . . . . . Tunnel 8 | . 2 . 2 . 2 2 . . . . . . . . . . . . . . . . . . . . . . . . . . Scanalyzers . | . . . . . . . . . . . . . . . . . . . . . . . . . . . . . . . . . Garrison Access . | . . . . . . . . . . . . . . . . . . . . . . . . . . . . . . . . . Data Cores Recovered 5 | . . . . . . . . . . . . . . 1 . . . . 1 2 . . . . . . . . . 1 . . Used . | . . . . . . . . . . . . . . . . . . . . . . . . . . . . . . . . . Hacking Detections 74 | . 8 . 13 . 13 8 9 . 1 . . 2 . 7 . . . . 4 . 1 . . 4 . . . . 3 1 . . Full Trace Events 5 | . . . 1 . . . 3 . . . . . . . . . . . 1 . . . . . . . . . . . . . Feedback Events . | . . . . . . . . . . . . . . . . . . . . . . . . . . . . . . . . . Feedback Blocked . | . . . . . . . . . . . . . . . . . . . . . . . . . . . . . . . . . Robot Schematics Acquired 11 | . . . . . . . . . . 8 . . . . . . 3 . . . . . . . . . . . . . . . Robots Built 2 | . . . . . . . . . . . . . . . . . . . . . . . . . . . . . . 2 . . Authchips 1 | . . . . . . . . . . . . . . . . . . . . . . . . . . . . . . 1 . . Time 74 | . . . . . . . . . . . . . . . . . . . . . . . . . . . . . . 74 . . Total Robot Build Rating 18 | . . . . . . . . . . . . . . . . . . . . . . . . . . . . . . 18 . . Part Schematics Acquired 53 | . . . 2 . 2 . . . . 11 . . . . . . 14 . . 9 . . . 12 . . 3 . . . . . Parts Built 11 | . . . . . . . 1 . . . . . . 2 . . . . . . . . . 3 . . . . . 5 . . Authchips 6 | . . . . . . . . . . . . . . 1 . . . . . . . . . 1 . . . . . 4 . . Time 437 | . . . . . . . 42 . . . . . . 58 . . . . . . . . . 157 . . . . . 180 . . Total Part Build Rating 70 | . . . . . . . 4 . . . . . . 14 . . . . . . . . . 23 . . . . . 29 . . Part Studies Acquired 3 | . . . . . 1 . . . . . . . . . . . . . 1 . . . . . . . . . 1 . . . Parts Repaired . | . . . . . . . . . . . . . . . . . . . . . . . . . . . . . . . . . Time . | . . . . . . . . . . . . . . . . . . . . . . . . . . . . . . . . . Parts Recycled . | . . . . . . . . . . . . . . . . . . . . . . . . . . . . . . . . . Recycled Matter . | . . . . . . . . . . . . . . . . . . . . . . . . . . . . . . . . . Retrieved Matter . | . . . . . . . . . . . . . . . . . . . . . . . . . . . . . . . . . Retrieved Components 28 | . 8 . 2 . 4 . . . . . . . . 2 . . . . . . . . . . . . . . 12 . . . Parts Scanalyzed 4 | . . . 2 . 2 . . . . . . . . . . . . . . . . . . . . . . . . . . . Part Schematics Acquired 4 | . . . 2 . 2 . . . . . . . . . . . . . . . . . . . . . . . . . . . Parts Damaged . | . . . . . . . . . . . . . . . . . . . . . . . . . . . . . . . . . Bothacking | -11 -10 -10 -9 -9 -8 -8 -7 -7 -7 -7 -6 -6 -6 -6 -6 -6 -6 -5 -5 -5 -5 -5 -5 -4 -4 -4 -4 -3 -3 -3 -3 -2 ------------ Run | Yrd Mat Min Mat Min Mat Sto Fac Low Low Dat Pro Fac Was Fac Low Low Zio Pro Fac Ext Cet Arc Hub Fac Upp Upp Zhi Pro Res Arm Lab Res Used RIF Installer . | . . . . . . . . . . . . . . . . . . . . . . . . . . . . . . . . . Robots Hacked 1 | . . . . . . . . . . . . . . . . . . . . . . . . 1 . . . . . . . . Non-combat . | . . . . . . . . . . . . . . . . . . . . . . . . . . . . . . . . . Combat 1 | . . . . . . . . . . . . . . . . . . . . . . . . 1 . . . . . . . . Robot Hacks Applied 1 | . . . . . . . . . . . . . . . . . . . . . . . . 1 . . . . . . . . parse_system 1 | . . . . . . . . . . . . . . . . . . . . . . . . 1 . . . . . . . . Relay Couplers Released . | . . . . . . . . . . . . . . . . . . . . . . . . . . . . . . . . . Fabnet Peak Effective % . | . . . . . . . . . . . . . . . . . . . . . . . . . . . . . . . . . Robots Rewired 14 | . . . . . . . . . . . . . . . . . . . . 6 . . . . . . . . . 8 . . Allies Hacked 5 | . . . . . . . . . . . . . . . . . . . 2 . . . 2 . . . . . . 1 . . Hacks Repelled . | . . . . . . . . . . . . . . . . . . . . . . . . . . . . . . . . . Allies | -11 -10 -10 -9 -9 -8 -8 -7 -7 -7 -7 -6 -6 -6 -6 -6 -6 -6 -5 -5 -5 -5 -5 -5 -4 -4 -4 -4 -3 -3 -3 -3 -2 -------- Run | Yrd Mat Min Mat Min Mat Sto Fac Low Low Dat Pro Fac Was Fac Low Low Zio Pro Fac Ext Cet Arc Hub Fac Upp Upp Zhi Pro Res Arm Lab Res Total Allies 63 | . . . . 3 . . . . . . . . . . . . 8 . 3 19 2 . 3 1 . . . . 5 19 . . Largest Group 13 | . . . . 3 3 . . . . . . . . . . . 8 8 3 13 13 10 10 1 . . . . 4 5 . . Highest-Rated Group 646 | . . . . 40 40 . . . . . . . . . . . 281 281 197 646 546 419 419 146 . . . . 270 356 . . Highest-Rated Ally 159 | . . . . 16 16 . . . . . . . . . . . 41 41 85 159 96 96 96 146 . . . . 81 103 . . Zionite Dispatches 14 | . . . . . . . . . . . . . . . . . . . 2 2 . . 1 1 . . . . 3 5 . . Heavy 3 | . . . . . . . . . . . . . . . . . . . 1 1 . . . . . . . . . 1 . . Light 2 | . . . . . . . . . . . . . . . . . . . . 1 . . . . . . . . . 1 . . Fire 1 | . . . . . . . . . . . . . . . . . . . . . . . 1 . . . . . . . . . Hacker 2 | . . . . . . . . . . . . . . . . . . . . . . . . . . . . . 1 1 . . Hero 1 | . . . . . . . . . . . . . . . . . . . . . . . . 1 . . . . . . . . Thermal Resupply 2 | . . . . . . . . . . . . . . . . . . . 1 . . . . . . . . . . 1 . . Kinetic Resupply 1 | . . . . . . . . . . . . . . . . . . . . . . . . . . . . . 1 . . . Trap Resupply 1 | . . . . . . . . . . . . . . . . . . . . . . . . . . . . . . 1 . . Zionite Resupply 1 | . . . . . . . . . . . . . . . . . . . . . . . . . . . . . 1 . . . Total Orders 16 | . . . . . . . . . . . . . . . . . . . 8 . . . . . . . . . 4 4 . . STAY 3 | . . . . . . . . . . . . . . . . . . . 1 . . . . . . . . . 1 1 . . DROP 5 | . . . . . . . . . . . . . . . . . . . 1 . . . . . . . . . 2 2 . . RETURN 8 | . . . . . . . . . . . . . . . . . . . 6 . . . . . . . . . 1 1 . . Ally Attacks 539 | . . . . 5 26 . . . . . . . . . . . . 57 42 75 50 15 63 28 . . . . 39 139 . . Total Damage 14947 | . . . . 45 298 . . . . . . . . . . . . 961 1133 2170 1438 246 1274 1305 . . . . 1080 4997 . . Kills 97 | . . . . . 4 . . . . . . . . . . . . 5 9 25 3 4 6 10 . . . . 8 23 . . Allies Corrupted 1 | . . . . . . . . . . . . . . . . . . . . . . . 1 . . . . . . . . . Allies Melted . | . . . . . . . . . . . . . . . . . . . . . . . . . . . . . . . . . Intel | -11 -10 -10 -9 -9 -8 -8 -7 -7 -7 -7 -6 -6 -6 -6 -6 -6 -6 -5 -5 -5 -5 -5 -5 -4 -4 -4 -4 -3 -3 -3 -3 -2 ------- Run | Yrd Mat Min Mat Min Mat Sto Fac Low Low Dat Pro Fac Was Fac Low Low Zio Pro Fac Ext Cet Arc Hub Fac Upp Upp Zhi Pro Res Arm Lab Res Active Infowar (turns) 22456 | 47 83 19 1850 . . . 910 867 901 105 513 196 265 1031 899 531 1780 869 1652 761 335 142 582 1554 702 856 258 423 1913 1451 291 670 Optics 10270 | . . . . . . . . . . . . . . 986 899 531 1780 869 1652 761 335 142 582 893 . . . . 840 . . . Sensors 14714 | . . . . . . . 85 867 901 105 513 196 265 756 870 523 1773 704 1418 . . . . 1408 702 856 256 385 1581 210 . 340 IFF 78 | . . . . . . . . . . . . . . . . . . . . . . . . . . . . . . . . 78 Seismic 2824 | 47 83 19 1850 . . . 825 . . . . . . . . . . . . . . . . . . . . . . . . . Cloaking 624 | . . . . . . . . . . . . . . . . . . . . . . . . . . . . . 79 22 87 436 Jamming 4362 | . . . . . . . . . . . . . . . . . . . . . . . . . . . 2 38 1913 1449 291 669 ECM 2 | . . . . . . . . . . . . . . . . . . . . . . . . 2 . . . . . . . . Robot Analysis Total 8 | . 4 . 1 . . . . . . . . . . . . . . . . . . . . . . . 3 . . . . . Derelict Logs Recovered 16 | . . 1 . 2 . . . 1 3 . 1 . . . 1 1 2 1 . . . . . . . 3 . . . . . . Drone Launches 8 | . . . . . . . . . . . . . . . . . . . 6 . . . . . . . . . 1 1 . . Drone Recoveries 8 | . . . . . . . . . . . . . . . . . . . 6 . . . . . . . . . 1 1 . . Zionite Intel Received 16 | . . . . . . . . . . . . . . . . . . . 5 4 . . . 3 . . . . 2 2 . . Branch Access 2 | . . . . . . . . . . . . . . . . . . . 1 . . . . . . . . . 1 . . . Emergency Access 1 | . . . . . . . . . . . . . . . . . . . . . . . . 1 . . . . . . . . Guard Positions 1 | . . . . . . . . . . . . . . . . . . . . 1 . . . . . . . . . . . . Component Stockpiles 3 | . . . . . . . . . . . . . . . . . . . 1 . . . . 1 . . . . . 1 . . Prototype Stockpiles 1 | . . . . . . . . . . . . . . . . . . . . . . . . . . . . . . 1 . . Prototype Schematics 2 | . . . . . . . . . . . . . . . . . . . . 1 . . . 1 . . . . . . . . Unaware Analyses 2 | . . . . . . . . . . . . . . . . . . . 1 1 . . . . . . . . . . . . Trap Installations 1 | . . . . . . . . . . . . . . . . . . . 1 . . . . . . . . . . . . . Active Terminals 1 | . . . . . . . . . . . . . . . . . . . . . . . . . . . . . 1 . . . Depthwide Sectors/0 2 | . . . . . . . . . . . . . . . . . . . 1 1 . . . . . . . . . . . . Exploration | -11 -10 -10 -9 -9 -8 -8 -7 -7 -7 -7 -6 -6 -6 -6 -6 -6 -6 -5 -5 -5 -5 -5 -5 -4 -4 -4 -4 -3 -3 -3 -3 -2 ------------- Run | Yrd Mat Min Mat Min Mat Sto Fac Low Low Dat Pro Fac Was Fac Low Low Zio Pro Fac Ext Cet Arc Hub Fac Upp Upp Zhi Pro Res Arm Lab Res Turns Passed 31078 | 160 1148 1036 2091 788 2204 1703 1546 869 901 105 525 223 265 1031 899 531 1780 869 1652 761 335 142 597 1742 704 876 258 423 1913 2033 291 677 Spaces Moved 17671 | 75 627 550 1017 475 1062 712 801 635 685 77 394 142 140 570 648 401 875 384 1078 524 175 41 285 1050 569 547 189 265 1087 1053 200 338 Core 18 | 9 . . . . . 2 . . . . . . . . . . . . . . . . . . . . . . . . . 7 Treads 4247 | 66 627 550 1017 475 1062 194 256 . . . . . . . . . . . . . . . . . . . . . . . . . Legs 8447 | . . . . . . . . . . . . . . 1 . . 668 384 1078 524 175 41 285 1050 569 547 189 265 1087 1053 200 331 Wheels 4959 | . . . . . . 516 545 635 685 77 394 142 140 569 648 401 207 . . . . . . . . . . . . . . . Hover . | . . . . . . . . . . . . . . . . . . . . . . . . . . . . . . . . . Flight . | . . . . . . . . . . . . . . . . . . . . . . . . . . . . . . . . . Fastest Speed 50 | 50 160 160 160 160 150 110 130 130 130 130 130 130 130 130 130 130 130 205 119 117 117 117 117 117 121 121 122 122 117 115 115 50 Average Speed 139 | 148 160 160 160 160 153 158 150 130 130 130 130 130 130 146 131 130 198 213 124 117 117 117 117 122 121 121 122 122 120 117 115 114 Slowest Speed 1050 | 160 160 160 160 160 160 1050 225 130 130 130 130 130 130 360 145 130 310 220 126 119 117 117 117 200 121 122 122 122 193 120 115 117 Overloaded Moves . | . . . . . . . . . . . . . . . . . . . . . . . . . . . . . . . . . Propulsion Burnouts . | . . . . . . . . . . . . . . . . . . . . . . . . . . . . . . . . . Robots Hopped . | . . . . . . . . . . . . . . . . . . . . . . . . . . . . . . . . . Potential Cave-ins 25 | . . . . . . . . . . . . . 18 . . . . . . . . . . 4 . . . . 3 . . . Cave-ins Triggered 2 | . . . . . . . . . . . . . 2 . . . . . . . . . . . . . . . . . . . Teleports 2 | . . . . . . . . . . . . . . . . . . . . . . . . . . . . . . 1 . 1 Exploration Rate (%) 61 | 6 96 98 78 95 93 90 19 74 90 68 58 5 78 19 76 64 90 67 33 80 71 75 34 32 80 77 60 43 37 59 74 11 Regions Visited 32 Branch Regions 21 Pre-discovered Areas 43 | . 2 . 3 1 5 2 . 1 . 1 1 . . . . . 3 . 10 10 . . . . . 1 3 . . . . . Known Exits Taken 29 | . 1 1 1 1 1 1 1 1 1 1 1 . . 1 1 1 1 1 1 1 1 1 1 1 1 1 1 1 1 1 1 . Unknown Exits Taken 1 | 1 . . . . . . . . . . . . . . . . . . . . . . . . . . . . . . . . Scrap Searched 21 | . . 2 . 2 . . . 1 4 . . . . . 1 1 2 1 . . . . . . 2 2 . 3 . . . . Spaces Dug 163 | . . . . . 5 22 . 5 . . . 2 22 7 5 . . . 30 . . . 1 8 2 11 . 4 28 6 . 5 Terrain Destroyed 1043 | . . . 77 . 5 22 79 16 . . . 2 22 33 18 24 . 37 114 46 11 . 197 61 5 65 . 17 67 99 . 26 Melee 24 | . . . . . . . . . . . . 2 22 . . . . . . . . . . . . . . . . . . . Projectile 354 | . . . . . . . 1 . . . . . . 28 18 2 . 3 56 16 11 . 11 34 5 23 . 17 67 37 . 25 AOE 661 | . . . 77 . 5 22 78 16 . . . . . 5 . 22 . 34 58 30 . . 186 27 . 42 . . . 59 . . Terrain Rammed . | . . . . . . . . . . . . . . . . . . . . . . . . . . . . . . . . . Walls Destroyed . | . . . . . . . . . . . . . . . . . . . . . . . . . . . . . . . . . Machines Disabled . | . . . . . . . . . . . . . . . . . . . . . . . . . . . . . . . . . Actions | -11 -10 -10 -9 -9 -8 -8 -7 -7 -7 -7 -6 -6 -6 -6 -6 -6 -6 -5 -5 -5 -5 -5 -5 -4 -4 -4 -4 -3 -3 -3 -3 -2 --------- Run | Yrd Mat Min Mat Min Mat Sto Fac Low Low Dat Pro Fac Was Fac Low Low Zio Pro Fac Ext Cet Arc Hub Fac Upp Upp Zhi Pro Res Arm Lab Res Total 21817 | 96 707 622 1327 497 1402 1102 992 666 702 82 399 174 197 685 668 406 914 420 1293 629 271 128 419 1365 577 715 216 327 1476 1589 259 495 Wait 1568 | . 15 5 134 12 136 255 9 . . . . 19 26 17 1 . 8 1 59 52 55 83 34 142 . 123 . 34 145 127 38 38 Move 17639 | 74 626 549 1016 474 1061 711 800 634 684 76 393 142 138 569 647 400 874 383 1077 523 174 40 284 1049 568 546 188 264 1086 1052 199 338 Hop . | . . . . . . . . . . . . . . . . . . . . . . . . . . . . . . . . . Pick Up 256 | 2 10 5 21 . 22 10 18 4 6 . 1 3 1 11 3 . 4 6 17 . 6 . 3 22 1 2 8 2 19 38 5 6 Fast Attach 93 | 7 2 1 5 . 1 5 7 1 . 2 . . 1 6 1 . 6 2 5 . . . 1 7 . . 3 . 11 14 4 1 Attach 104 | . . 3 6 . 9 4 13 2 . 1 . 2 . 8 . . 1 1 2 . . . 3 10 . . 1 . 11 16 1 10 Detach 24 | . 2 . 2 . . . 1 . . 1 . . . 2 . . 1 . 2 . . . 1 1 . . . . 1 6 1 3 Swap 539 | 1 6 7 29 3 33 30 28 14 4 . 2 3 . 23 4 4 9 13 48 8 7 . 22 48 2 9 5 8 78 73 1 17 Drop 276 | . 9 3 28 3 18 11 18 6 8 2 . 1 3 9 . . 10 7 21 2 10 . 4 16 . 2 10 2 15 45 7 6 Fire 1061 | 12 35 42 74 3 102 67 86 5 . . 3 2 . 40 12 2 1 7 57 18 19 5 61 63 6 32 . 17 107 120 3 60 Melee 37 | . . . . . . . . . . . . 2 27 . . . . . . . . . 3 . . . 1 . 3 1 . . Ram . | . . . . . . . . . . . . . . . . . . . . . . . . . . . . . . . . . Kick 30 | . . . . . . . . . . . . . . . . . . . 3 1 . . 3 5 . 1 . . . 1 . 16 Crush 55 | . 2 5 12 2 20 9 5 . . . . . . . . . . . . . . . . . . . . . . . . . Escape Stasis 8 | . . . . . . . 7 . . . . . 1 . . . . . . . . . . . . . . . . . . . Rewire 127 | . . 2 . . . . . . . . . . . . . . . . 2 25 . . . 2 . . . . . 96 . . Trap . | . . . . . . . . . . . . . . . . . . . . . . . . . . . . . . . . . Miscellaneous . | . . . . . . . . . . . . . . . . . . . . . . . . . . . . . . . . . Route ------- -11/Scrapyard -10/Materials (discovered 6 exits: *Mat x3 / *Min x2 / *Sub) -10/Mines (discovered 4 exits: *Mat x2 / [*Exi] / *Sub) -9/Materials (discovered 5 exits: *Mat x3 / *Min x2) -9/Mines (discovered 2 exits: *Mat x2) -8/Materials (discovered 4 exits: *Fac x3 / *Sto) -8/Storage (discovered 2 exits: *Fac / Rec) -7/Factory -7/Lower Caves -7/Lower Caves (discovered 2 exits: *Fac / *Dat) -7/Data Miner -6/Proximity Caves -6/Factory (discovered 2 exits: Fac x2) -6/Waste -6/Factory (discovered 2 exits: *Fac / *Low) -6/Lower Caves -6/Lower Caves (discovered 2 exits: *Fac / *Zio) -6/Zion (discovered 2 exits: Dee / *Pro) -5/Proximity Caves -5/Factory (discovered 6 exits: *Fac x2 / *Upp x2 / *Ext x2) -5/Extension (discovered 3 exits: *Fac x2 / *Cet) -5/Cetus (discovered 2 exits: *Fac / *Arc) -5/Archives (discovered 2 exits: *Hub x2) -5/Hub_04(d) (discovered 3 exits: *Fac x3) -4/Factory -4/Upper Caves -4/Upper Caves (discovered 2 exits: *Res / *Zhi) -4/Zhirov -3/Proximity Caves -3/Research (discovered 6 exits: *Res x3 / *Arm / *Tes x2) -3/Armory -3/Lab -2/Research (discovered 1 exit: *Acc) History --------- Turn | Location | Event 3 | -11/Scrapyard | Discovered new exit (range 16) 161 | -11/Scrapyard | Entered Materials 162 | -10/Materials | Met a group of wandering Federalists 315 | -10/Materials | Build established: Mutant 597 | -10/Materials | Discovered new exit (range 12) 709 | -10/Materials | Discovered new exit (range 10) 755 | -10/Materials | Central database locked down 892 | -10/Materials | Discovered new exit (range 6) 990 | -10/Materials | Discovered new exit (range 12) 1030 | -10/Materials | Discovered new exit (range 8) 1053 | -10/Materials | Identified exit to Materials 1094 | -10/Materials | Learned location of 2 exits from Materials 1109 | -10/Materials | Identified exit to Mines 1125 | -10/Materials | Loaded intel: 14 trap records 1148 | -10/Materials | Learned location of 2 exits from Mines 1184 | -10/Materials | Learned Storage emergency access door positions 1309 | -10/Materials | Entered Mines 1310 | -10/Mines | Identified exit to Subcaves 1442 | -10/Mines | Assembled infested the area 1508 | -10/Mines | Core integrity fell below 50% 2031 | -10/Mines | Discovered exit to Materials (range 5) 2182 | -10/Mines | Discovered new exit (range 5) 2219 | -10/Mines | A weapon hastily lodged in a ceiling crevice suddenly fell to the ground 2345 | -10/Mines | Entered Materials 2345 | -9/Materials | Evolved 2 slots: Utility x1, Weapon x1 2346 | -9/Materials | Identified exit to Materials 2346 | -9/Materials | Identified exit to Mines 2661 | -9/Materials | Build established: Scavenger-Gunner 3415 | -9/Materials | Learned Storage trap positions 3449 | -9/Materials | Learned Storage stockpile data 3457 | -9/Materials | Discovered exit to Materials (range 10) 3482 | -9/Materials | Learned location of 1 exit from Recycling 3494 | -9/Materials | Loaded intel: 2 repair station locations 3515 | -9/Materials | Learned 2 Storage zone layouts 3558 | -9/Materials | Core integrity fell below 50% 4230 | -9/Materials | Learned Storage trap positions 4294 | -9/Materials | Learned Storage trap positions 4313 | -9/Materials | Learned location of Zion (-6) 4320 | -9/Materials | Loaded intel: 2 recycling unit locations 4321 | -9/Materials | Learned Storage emergency access door positions 4345 | -9/Materials | First assault squad dispatched 4349 | -9/Materials | Learned Storage emergency access door positions 4375 | -9/Materials | Learned Storage interactive machine intel 4436 | -9/Materials | Entered Mines 4521 | -9/Mines | Learned 8 Materials zone layouts 4608 | -9/Mines | Build established: Gunner 4649 | -9/Mines | Assisted by bots powering up and referring to "LRC-V3" 5116 | -9/Mines | Joined a pair of Derelicts in attacking an 0b10 outpost 5224 | -9/Mines | Entered Materials 5224 | -8/Materials | Accompanied by 3 allies 5224 | -8/Materials | Evolved 2 slots: Propulsion x1, Utility x1 5225 | -8/Materials | Identified exit to Storage 5226 | -8/Materials | Identified exit to Factory 5269 | -8/Materials | Garrison activated, responded to threat 5792 | -8/Materials | Central database locked down 6406 | -8/Materials | Lost 3 parts (1n1u1w) 6668 | -8/Materials | Discovered exit to Factory (range 5) 6932 | -8/Materials | Learned location of Extension (-5) 7021 | -8/Materials | Learned Factory trap positions 7048 | -8/Materials | Learned Factory security intel 7075 | -8/Materials | Learned location of 1 exit from Lower Caves 7125 | -8/Materials | Learned 4 Factory zone layouts 7184 | -8/Materials | Core integrity fell below 50% 7224 | -8/Materials | First assault squad dispatched 7428 | -8/Materials | Entered Storage 7429 | -8/Storage | Identified exit to Recycling 7430 | -8/Storage | Loaded intel: 17 trap records 7432 | -8/Storage | Loaded intel: 21 interactive machine locations 7901 | -8/Storage | Destroyed 8 combat bots 7981 | -8/Storage | Lost 3 parts (2n1u) 8057 | -8/Storage | Discovered exit to Factory (range 16) 8565 | -8/Storage | Build established: Scavenger-Gunner 9131 | -8/Storage | Entered Factory 9131 | -7/Factory | Evolved 2 slots: Propulsion x1, Utility x1 9132 | -7/Factory | Identified exit to Lower Caves 9134 | -7/Factory | Loaded intel: 134 trap records 9303 | -7/Factory | Garrison activated, responded to threat 9985 | -7/Factory | Build established: Gunner 9999 | -7/Factory | Destroyed 9 combat bots 10136 | -7/Factory | Lost 3 parts (2u1w) 10193 | -7/Factory | Garrison activated, responded to threat 10226 | -7/Factory | Lost 3 parts (3n) 10267 | -7/Factory | Fabricated Lgt. Armored Exoskeleton (x1) 10331 | -7/Factory | First assault squad dispatched 10455 | -7/Factory | Lost 5 parts (3n1u1w) 10677 | -7/Factory | Entered Lower Caves 10678 | -7/Lower Caves | Identified exit to Lower Caves 10707 | -7/Lower Caves | Found Alien Artifact 10707 | -7/Lower Caves | Identified Core Expander 10707 | -7/Lower Caves | Installed Core Expander, added new Power slot 10969 | -7/Lower Caves | Build established: Skirmisher 11546 | -7/Lower Caves | Entered another Lower Caves area 11566 | -7/Lower Caves | Discovered new exit (range 15) 11569 | -7/Lower Caves | Learned Factory interactive machine intel 11658 | -7/Lower Caves | Encountered a Warlord checkpoint 11810 | -7/Lower Caves | Learned Factory emergency access door positions 11915 | -7/Lower Caves | Learned location of 2 exits from Factory 11917 | -7/Lower Caves | Discovered new exit (range 7) 11935 | -7/Lower Caves | Identified exit to Data Miner 12447 | -7/Lower Caves | Entered Data Miner 12447 | -7/Data Miner | Discovered new exit (range 6) 12474 | -7/Data Miner | Met Data Miner 12498 | -7/Data Miner | Learned location of Section 7 (-2) 12498 | -7/Data Miner | Acquired the access code to Warlord's prototype stash 12514 | -7/Data Miner | Received God Mode back door access code from Data Miner 12549 | -7/Data Miner | Identified exit to Proximity Caves 12552 | -7/Data Miner | Entered Proximity Caves 12554 | -6/Proximity Caves | Attracted the attention of an 0b10 checkpoint 13068 | -6/Proximity Caves | Discovered new exit (range 7) 13076 | -6/Proximity Caves | Identified exit to Factory 13077 | -6/Proximity Caves | Entered Factory 13077 | -6/Factory | Evolved 2 slots: Propulsion x1, Utility x1 13078 | -6/Factory | Identified exit to Factory 13080 | -6/Factory | Loaded intel: 53 interactive machine locations 13300 | -6/Factory | Sucked down chute 13300 | -6/Factory | Entered Waste 13356 | -6/Waste | Spotted C-40 Crusher 13357 | -6/Waste | Spotted C-40 Crusher 13357 | -6/Waste | Spotted C-40 Crusher 13410 | -6/Waste | Spotted C-40 Crusher 13412 | -6/Waste | Spotted C-40 Crusher 13419 | -6/Waste | Spotted C-40 Crusher 13444 | -6/Waste | Discovered new exit (range 16) 13496 | -6/Waste | Crushed by falling debris 13503 | -6/Waste | Crushed by falling debris 13564 | -6/Waste | Identified exit to Factory 13565 | -6/Waste | Entered Factory 13610 | -6/Factory | Build established: Mutant 13742 | -6/Factory | Discovered exit to Factory (range 11) 13774 | -6/Factory | Found Prototype Launcher 13774 | -6/Factory | Identified Scatter Rocket Array 13800 | -6/Factory | Found Faulty Scatter Rocket Array 14065 | -6/Factory | Build established: Tank 14233 | -6/Factory | Discovered new exit (range 15) 14271 | -6/Factory | Fabricated Lrn. Sensor Array (x2) 14357 | -6/Factory | Identified exit to Lower Caves 14582 | -6/Factory | Cargo convoy interrupted 14596 | -6/Factory | Entered Lower Caves 14830 | -6/Lower Caves | Learned Factory terminal intel 15001 | -6/Lower Caves | Build established: Scavenger-Skirmisher 15238 | -6/Lower Caves | Encountered a Warlord checkpoint 15269 | -6/Lower Caves | Entered an active Warlord outpost 15277 | -6/Lower Caves | Learned Extension stockpile data 15277 | -6/Lower Caves | Learned Extension garrison access intel 15403 | -6/Lower Caves | Discovered new exit (range 10) 15412 | -6/Lower Caves | Identified exit to Lower Caves 15495 | -6/Lower Caves | Entered another Lower Caves area 15501 | -6/Lower Caves | Learned Factory emergency access door positions 15562 | -6/Lower Caves | Discovered exit to Factory (range 12) 15988 | -6/Lower Caves | Encountered a Warlord checkpoint 16006 | -6/Lower Caves | Discovered new exit (range 10) 16019 | -6/Lower Caves | Identified exit to Zion 16026 | -6/Lower Caves | Entered Zion 16081 | -6/Zion | System corruption cleaned by Quarantine Array 16164 | -6/Zion | Given A8's code to call for help 16211 | -6/Zion | Discovered new exit (range 15) 16221 | -6/Zion | Visited the Megawrench Repair Shop 16348 | -6/Zion | Learned Factory garrison access intel 16383 | -6/Zion | Given the Hacking Drone Bay 16383 | -6/Zion | Found Prototype Device 16534 | -6/Zion | Identified exit to Deep Caves 16840 | -6/Zion | Met Imprinter 16877 | -6/Zion | Imprinted 16879 | -6/Zion | Declared Zion's savior 16991 | -6/Zion | Learned Factory emergency access door positions 17073 | -6/Zion | Found GAL Module 17121 | -6/Zion | Found Unknown Piercing Weapon 17252 | -6/Zion | Gained Derelict followers 17704 | -6/Zion | Megawrench repaired 12 parts 17798 | -6/Zion | Identified exit to Proximity Caves 17806 | -6/Zion | Entered Proximity Caves 17806 | -5/Proximity Caves | Accompanied by 8 allies 17808 | -5/Proximity Caves | Attracted the attention of an 0b10 checkpoint 18136 | -5/Proximity Caves | Build established: Skirmisher 18161 | -5/Proximity Caves | Learned Factory garrison access intel 18316 | -5/Proximity Caves | Spotted B-75 Beast 18338 | -5/Proximity Caves | Identified CR-A16's Pointy Stick 18340 | -5/Proximity Caves | Allies destroyed B-75 Beast 18370 | -5/Proximity Caves | Lost 5 allies 18527 | -5/Proximity Caves | Discovered exit to Factory (range 5) 18622 | -5/Proximity Caves | Found Alien Artifact 18675 | -5/Proximity Caves | Entered Factory 18675 | -5/Factory | Accompanied by 3 allies 18675 | -5/Factory | Evolved 2 slots: Propulsion x1, Utility x1 18677 | -5/Factory | Loaded intel: 28 terminal locations 18678 | -5/Factory | Loaded intel: 4 garrison access locations 18727 | -5/Factory | Build established: Scavenger-Skirmisher 18900 | -5/Factory | Retrieved Zion intel report: Trap Installations 18936 | -5/Factory | Discovered new exit (range 6) 18948 | -5/Factory | Garrison activated, responded to threat 18964 | -5/Factory | Garrison activated, responded to threat 19116 | -5/Factory | Discovered new exit (range 21) 19163 | -5/Factory | Identified exit to Factory 19174 | -5/Factory | Discovered new exit (range 9) 19183 | -5/Factory | Identified exit to Upper Caves 19238 | -5/Factory | Retrieved Zion intel report: Component Stockpiles 19272 | -5/Factory | Identified Hacking Drone Bay 19507 | -5/Factory | Retrieved Zion intel report: Depthwide Sectors/-5 19508 | -5/Factory | Zion Thermal Resupply teleported in 19549 | -5/Factory | Discovered exit to Upper Caves (range 19) 19623 | -5/Factory | Discovered exit to Factory (range 19) 19722 | -5/Factory | Retrieved Zion intel report: Unaware Analyses 19916 | -5/Factory | Discovered new exit (range 41) 19978 | -5/Factory | Retrieved Zion intel report: Branch Access 19978 | -5/Factory | Identified exit to Extension 19979 | -5/Factory | Zion Heavy squad teleported in 19987 | -5/Factory | Build established: Skirmisher 20199 | -5/Factory | Terminal network hard line cut 20234 | -5/Factory | Found Prototype Protection 20234 | -5/Factory | Identified Zio. Weapon Casing 20327 | -5/Factory | Entered Extension 20327 | -5/Extension | Accompanied by 1 ally 20459 | -5/Extension | Zion Heavy squad teleported in 20470 | -5/Extension | Rescued a captive Derelict 20472 | -5/Extension | Rescued a captive Derelict 20486 | -5/Extension | Rescued a captive Derelict 20487 | -5/Extension | Rescued a captive Derelict 20521 | -5/Extension | Zion Light squad teleported in 20608 | -5/Extension | Build established: Messiah-Gunner 20615 | -5/Extension | Rescued a captive Derelict 20617 | -5/Extension | Rescued a captive Derelict 20639 | -5/Extension | Energy Cycler disabled 20640 | -5/Extension | Rescued a captive Derelict 20642 | -5/Extension | Rescued a captive Derelict 20644 | -5/Extension | Rescued a captive Derelict 20646 | -5/Extension | Rescued a captive Derelict 20651 | -5/Extension | Rescued a captive Derelict 20668 | -5/Extension | Retrieved Zion intel report: Prototype Schematics 20713 | -5/Extension | Rescued A7 20714 | -5/Extension | Discovered exit to Factory (range 20) 20715 | -5/Extension | Spotted B-75 Beast 20719 | -5/Extension | Allies destroyed B-75 Beast 20728 | -5/Extension | Extracted ID and sensor layout for unrecognized location from A7's data core 20781 | -5/Extension | Retrieved Zion intel report: Guard Positions 20791 | -5/Extension | Lost 5 allies 20811 | -5/Extension | Retrieved Zion intel report: Depthwide Sectors/-5 20839 | -5/Extension | Retrieved Zion intel report: Unaware Analyses 21027 | -5/Extension | Discovered exit to Factory (range 10) 21028 | -5/Extension | Discovered new exit (range 6) 21087 | -5/Extension | Identified exit to Cetus 21088 | -5/Extension | Entered Cetus 21088 | -5/Cetus | Accompanied by 13 allies 21103 | -5/Cetus | Spotted Cetus Guard 21103 | -5/Cetus | Spotted Cetus Guard 21105 | -5/Cetus | Spotted Cetus Guard 21107 | -5/Cetus | Spotted Cetus Guard 21119 | -5/Cetus | Allies destroyed Cetus Guard 21120 | -5/Cetus | Destroyed Cetus Guard 21128 | -5/Cetus | Destroyed Cetus Guard 21131 | -5/Cetus | Destroyed Cetus Guard 21141 | -5/Cetus | Found Zio. Weapon Casing 21157 | -5/Cetus | Lost 3 allies 21197 | -5/Cetus | Enhanced Grunt warped into view, answering call for help 21199 | -5/Cetus | Enhanced Grunt warped into view, answering call for help 21210 | -5/Cetus | Discovered new exit (range 22) 21256 | -5/Cetus | Spotted Cetus Guard 21260 | -5/Cetus | Spotted Cetus Guard 21261 | -5/Cetus | Spotted Cetus Guard 21263 | -5/Cetus | Spotted Cetus Guard 21267 | -5/Cetus | Discovered exit to Factory (range 22) 21268 | -5/Cetus | Allies destroyed Cetus Guard 21271 | -5/Cetus | Destroyed Cetus Guard 21281 | -5/Cetus | Destroyed Cetus Guard 21288 | -5/Cetus | Destroyed Cetus Guard 21296 | -5/Cetus | Found Zio. Weapon Casing 21314 | -5/Cetus | Scared off Revision 17 21385 | -5/Cetus | Identified exit to Archives 21423 | -5/Cetus | Entered Archives 21423 | -5/Archives | Accompanied by 10 allies 21454 | -5/Archives | Discovered new exit (range 21) 21459 | -5/Archives | Discovered new exit (range 20) 21480 | -5/Archives | Identified exit to Hub_04(d) 21565 | -5/Archives | Entered Hub_04(d) 21565 | -5/Hub_04(d) | Accompanied by 10 allies 21578 | -5/Hub_04(d) | Discovered exit to Factory (range 22) 21668 | -5/Hub_04(d) | Spotted B-75 Beast 21697 | -5/Hub_04(d) | Allies destroyed B-75 Beast 21745 | -5/Hub_04(d) | Lost 10 allies 22053 | -5/Hub_04(d) | Discovered exit to Factory (range 11) 22056 | -5/Hub_04(d) | Zion Fire squad teleported in 22082 | -5/Hub_04(d) | Discovered exit to Factory (range 14) 22127 | -5/Hub_04(d) | Lost 3 allies 22127 | -5/Hub_04(d) | Found Prototype Launcher 22127 | -5/Hub_04(d) | Identified Mni. Smartbomb Launcher 22155 | -5/Hub_04(d) | Network Hub disabled 22161 | -5/Hub_04(d) | Spotted Lightning 22162 | -5/Hub_04(d) | Entered Factory 22162 | -4/Factory | Evolved 2 slots: Propulsion x1, Utility x1 22164 | -4/Factory | Loaded intel: 4 garrison access locations 22241 | -4/Factory | Zion hero teleported in (NK-0LA) 22277 | -4/Factory | Found Prototype Device 22277 | -4/Factory | Identified Exp. ECM Suite 22462 | -4/Factory | Build established: Messiah-Skirmisher 22529 | -4/Factory | Incoming investigation squad redirected 22634 | -4/Factory | Allied Derelicts emerged from ambush trap array 22702 | -4/Factory | Fabricated Adv. Remote Datajack (x2) 22739 | -4/Factory | Retrieved Zion intel report: Component Stockpiles 22765 | -4/Factory | Discovered new exit (range 9) 22774 | -4/Factory | Identified exit to Upper Caves 22809 | -4/Factory | Retrieved Zion intel report: Prototype Schematics 22939 | -4/Factory | Found Imp. Powered Armor 22943 | -4/Factory | Found Imp. Powered Armor 22980 | -4/Factory | Found Unknown Device 22980 | -4/Factory | Identified Quantum Capacitor 23234 | -4/Factory | Retrieved Zion intel report: Emergency Access 23235 | -4/Factory | Build established: Messiah-Gunner 23296 | -4/Factory | P-70 Sage assimilated allied NK-0LA 23325 | -4/Factory | System corruption reached 10% 23370 | -4/Factory | Lost 3 parts (1p2n) 23430 | -4/Factory | Terminal network hard line cut 23571 | -4/Factory | Fabricated Exp. Signal Interpreter (x1) 23646 | -4/Factory | Build established: Scavenger-Gunner 23904 | -4/Factory | Entered Upper Caves 24301 | -4/Upper Caves | Discovered new exit (range 10) 24309 | -4/Upper Caves | Identified exit to Upper Caves 24608 | -4/Upper Caves | Entered another Upper Caves area 24610 | -4/Upper Caves | Discovered new exit (range 13) 24656 | -4/Upper Caves | Identified exit to Research 24711 | -4/Upper Caves | Acquired the password to a Derelict Tinkerer's latest research 24902 | -4/Upper Caves | Found Prototype Special Weapon 25031 | -4/Upper Caves | Learned 8 Research zone layouts 25340 | -4/Upper Caves | Caught by Unaware searching for contraband prototypes 25411 | -4/Upper Caves | Learned 12 Research zone layouts 25477 | -4/Upper Caves | Discovered new exit (range 6) 25483 | -4/Upper Caves | Identified exit to Zhirov 25484 | -4/Upper Caves | Entered Zhirov 25484 | -4/Zhirov | Discovered new exit (range 3) 25508 | -4/Zhirov | Met Zhirov 25535 | -4/Zhirov | Learned location of Quarantine (-2) 25535 | -4/Zhirov | Learned location of Testing (-3) 25542 | -4/Zhirov | Zhirov requested help retrieving the SGEMP Prototype 25560 | -4/Zhirov | Found Alien Artifact 25560 | -4/Zhirov | Identified Integrated Dissipator 25560 | -4/Zhirov | Installed Integrated Dissipator, increased core heat dissipation (+20) 25577 | -4/Zhirov | Found Alien Artifact 25619 | -4/Zhirov | Revealed the true nature of CR-A16's Pointy Stick 25738 | -4/Zhirov | Identified exit to Proximity Caves 25742 | -4/Zhirov | Entered Proximity Caves 26105 | -3/Proximity Caves | Attracted the attention of an 0b10 outpost 26157 | -3/Proximity Caves | Discovered exit to Research (range 6) 26165 | -3/Proximity Caves | Entered Research 26165 | -3/Research | Evolved 2 slots: Utility x2 26166 | -3/Research | Identified exit to Research 26172 | -3/Research | Discovered exit to Research (range 10) 26302 | -3/Research | Zion Zionite Resupply teleported in 26333 | -3/Research | Found Prototype Protection 26685 | -3/Research | Discovered new exit (range 9) 26705 | -3/Research | Identified exit to Testing 26763 | -3/Research | Retrieved Zion intel report: Branch Access 26763 | -3/Research | Identified exit to Armory 26764 | -3/Research | Zion Hacker squad teleported in 26887 | -3/Research | Build established: Messiah-Skirmisher 27147 | -3/Research | Spotted B-86 Titan 27161 | -3/Research | Destroyed B-86 Titan 27472 | -3/Research | Build established: Messiah-Gunner 27605 | -3/Research | Retrieved Zion intel report: Active Terminals 27606 | -3/Research | Zion Kinetic Resupply teleported in 27706 | -3/Research | Terminal network hard line cut 27778 | -3/Research | Discovered exit to Research (range 6) 28078 | -3/Research | Entered Armory 28122 | -3/Armory | Identified Zio. Heavy Carapace 28320 | -3/Armory | Retrieved Zion intel report: Component Stockpiles 28321 | -3/Armory | Zion Hacker squad teleported in 28553 | -3/Armory | Found Prototype Protection 28553 | -3/Armory | Identified Centrium Heavy Armor Plating 28559 | -3/Armory | Found Prototype Launcher 28559 | -3/Armory | Identified Hellfire Missile Launcher 28562 | -3/Armory | Found Prototype Launcher 28562 | -3/Armory | Identified Adv. Micro-nuke Launcher 28811 | -3/Armory | P-80 Master assimilated allied Assassin 8d 28924 | -3/Armory | Zion Light squad teleported in 29070 | -3/Armory | Energy Cycler disabled 29127 | -3/Armory | Build established: Tank 29130 | -3/Armory | System corruption reached 10% 29170 | -3/Armory | Found Zio. Weapon Casing 29275 | -3/Armory | Lost 4 parts (1n2u1w) 29328 | -3/Armory | First assault squad dispatched 29344 | -3/Armory | Incoming assault squad redirected 29380 | -3/Armory | Retrieved Zion intel report: Prototype Stockpiles 29381 | -3/Armory | Zion Heavy squad teleported in 29397 | -3/Armory | Spotted B-86 Titan 29398 | -3/Armory | Zion Thermal Resupply teleported in 29410 | -3/Armory | Destroyed B-86 Titan 29419 | -3/Armory | Identified Transdimensional Reconstructor 29419 | -3/Armory | Warped through subspace to slip node 29419 | -3/Armory | Discovered new exit (range 1) 29526 | -3/Armory | Build established: Gunner 29595 | -3/Armory | Incoming assault squad redirected 29631 | -3/Armory | Zion Trap Resupply teleported in 29670 | -3/Armory | Terminal network hard line cut 29681 | -3/Armory | Fabricated Exp. Signal Interpreter (x1) 29726 | -3/Armory | Fabricated Lrn. Sensor Array (x2) 29831 | -3/Armory | Fabricated Hcp. Storage Unit (x1) 29897 | -3/Armory | Fabricated Exp. Optical Array (x1) 29976 | -3/Armory | Fabricated H-88 Terminator? 30108 | -3/Armory | Identified exit to Lab 30111 | -3/Armory | Entered Lab 30111 | -3/Lab | Discovered exit to Research (range 9) 30124 | -3/Lab | Hidden lab's door opened automatically 30124 | -3/Lab | Sensor layout match revealed 30125 | -3/Lab | Gained access to the hidden lab's interior 30150 | -3/Lab | Found Alien Artifact 30150 | -3/Lab | Identified Integrated Mediator 30150 | -3/Lab | Installed Integrated Mediator, increased core attachment efficiency 30159 | -3/Lab | Found Transdimensional Reconstructor 30219 | -3/Lab | Found Prototype Hackware 30222 | -3/Lab | Found Prototype Device 30222 | -3/Lab | Identified AEGIS Remote Shield 30228 | -3/Lab | Found Prototype Energy Cannon 30231 | -3/Lab | Found Prototype Energy Cannon 30295 | -3/Lab | Identified Potential Cannon (x2) 30386 | -3/Lab | Found Alien Artifact 30402 | -3/Lab | Entered Research 30402 | -2/Research | Evolved 2 slots: Power x1, Utility x1 30586 | -2/Research | Build established: Infiltrator-Gunner 30907 | -2/Research | Cargo convoy interrupted 30908 | -2/Research | Spotted Executioner 30948 | -2/Research | Warped through subspace 30948 | -2/Research | Discovered new exit (range 15) 30971 | -2/Research | Destroyed 7 combat bots 30988 | -2/Research | Identified exit to Access 31024 | -2/Research | Lost 3 parts (1p1u1w) 31066 | -2/Research | Identified Dimensional Node Initializer 31066 | -2/Research | Initialized slip node 31075 | -2/Research | Released all parts (16) 31078 | -2/Research | Spotted B-90 Cyclops 31079 | -2/Research | Core integrity fell below 50% 31079 | -2/Research | Self-destructed Last Messages --------------- 31074_ Slug penetrates Wall. 31075_ Released Arm. Heavy Treads. 31075_ Released Railgun. 31075_ Released IFF Parser. 31075_ Released Graphene Brace. 31075_ Released Enh. Nova Cannon. 31075_ Released Adv. Corruption Screen. 31075_ Released Exp. Signal Interpreter. 31075_ Released Centrium Leg. 31075_ Released Imp. Cryofiber Web. 31075_ Released Adv. Targeting Computer. 31075_ Released Huge Storage Unit. 31075_ Released Exp. Heat Sink. 31075_ Released Centrium Leg. 31075_ Released Exp. Cooling System. 31077_ The unstable cave ceiling collapses. 31078_ Penetrated by Slug. 31078_ Knocked back. 31078_ O-24 Administrator: "IFF HANDSHAKE FAILED. SECURING TERMINAL." Map ----- +----------------------------------------------------+ | ?????????????????????????????????????????????????? | | ?????????????????????????????????????????????????? | | ?????????????????????????????????????????????????? | | ?????????????????????????????????????????????????? | | ?????????????????????????????????????????????????? | | ?????????????????????????????????????????????????? | | ?????????????????????????????????????????????????? | | ???????????????????????????????????????????#+#???? | | ???????????????????????????????????????????# #???? | | ???????????????????????????##??????????????# #???? | | ???????????????????????????# #?????????????# #???? | | ???????????????????????????#############?### ##### | | ?????????????????????????### #?# | | ?????????????????????????# #?# | | ???????????????????????### =! "" #?# | | ???????????????????????# %!=!! " ### | | ???????????????????????## =%=]!!/ " + | | ???????????????????????# !]!=[!= " ### ### | | ???????????????????????## !%!!==H g #?# #?? | | ????????????????????????## !#!!! #?# #?? | | ??????????????????????#### != ##+#### ### | | ??????????????????????#BB# # ##" | | ???????????####+#######BB;## h ### | | ?????????? % #?# | | ?????????? o #?# | | ?????????? @ #?# | | ?????????????"" ##############?# | | ?????????????"" #??????????????# | | ?????????????"T ] [] +??????????????# | | ?????????????"" ] ###+## #??????????????? | | ?????????????"" #????? #??????????????? | | ????????????? #????? #??????????????? | | ???????????? #????? #??????????????? | | ????????????? #??????#??????????????? | | ?????????????"""T"""" ######?????????????????????? | | ???????????????"""""""???????????????????????????? | | ????????????????????#????????????????????????????? | | ?????????????????????????????????????????????????? | | ?????????????????????????????????????????????????? | | | | | | | | | | | | | | | | | | | | | | | +----------------------------------------------------+ Best States ------------- Heat Dissipation 159 Coolant Potential 65 Energy Generation 65 Energy Capacity 850 Matter Stores 300 Matter Capacity 300 Sight Range 22 Robot Scan Range 18 Terrain Scan Density 10 Jamming Range 16 Cloak Strength 3 Base Temperature (-) 150 Corruption Block 20 Armor Coverage 1600 Power Shielding 90 Propulsion Shielding 33 Weapon Shielding 100 Point Defense Rating 240 Melee Speed Boost 20 Evasion (%) 70 Targeting Accuracy 8 Launcher Accuracy 20 Core Analysis 6 Recoil Reduction 4 Offensive Hacking 14 Authchip Count 5 Item Schematics ----------------- Cmb. Airjet | -9/Materials | Scanalyzed Transport Network Coupler | -9/Materials | Scanalyzed Hcp. Storage Unit | -8/Materials | Scanalyzed Seismic Detector | -8/Materials | Scanalyzed Combat Drone Bay | -7/Data Miner | Free Lgt. Regenerative Plating | -7/Data Miner | Free Biomechanical Wings | -7/Data Miner | Free Exp. Power Shielding | -7/Data Miner | Free Shock Maul | -7/Data Miner | Free Field Propulsion Drive | -7/Data Miner | Free Adv. System Shield | -7/Data Miner | Free Hyp. Gauss Cannon | -7/Data Miner | Free Lyr. Medium Armor Plating | -7/Data Miner | Free Imp. Plasma Cutter | -7/Data Miner | Free Lrn. Sensor Array | -7/Data Miner | Free Hvy. Flak Cannon | -6/Zion | Archive Mass Driver | -6/Zion | Archive EM Shield | -6/Zion | Archive Cloaking Device | -6/Zion | Archive Fusion Compressor | -6/Zion | Archive Disruptor Cannon | -6/Zion | Archive Imp. Transmission Jammer | -6/Zion | Archive Myomer Leg | -6/Zion | Archive Mni. Drone Bay | -6/Zion | Archive Falx | -6/Zion | Archive Arm. Medium Treads | -6/Zion | Archive Hyp. Coil Gun | -6/Zion | Archive Thermal Shield | -6/Zion | Archive HERF Cannon | -6/Zion | Archive Imp. Matter Compressor | -5/Extension | Z-intel Cld. Nuclear Pulse Thruster | -5/Extension | Z-intel Imp. Energy Well | -5/Extension | Z-intel Imp. Spread Laser | -5/Extension | Z-intel Imp. Heavy Laser | -5/Extension | Z-intel Tiamat Missile Launcher | -5/Extension | Z-intel Imp. KE Penetrator | -5/Extension | Z-intel Gravity Neutralizer | -5/Extension | Z-intel Enh. Coil Gun | -5/Extension | Z-intel Lrn. Phase Cannon | -4/Factory | Z-intel Adv. Matter Compressor | -4/Factory | Z-intel Adv. Dynamic Insulation System | -4/Factory | Z-intel Exp. Heat Sink | -4/Factory | Z-intel Prc. Matter Filter | -4/Factory | Z-intel Scatter Rocket Array | -4/Factory | Z-intel Enh. Armored Leg | -4/Factory | Z-intel Hvy. Gatling Laser | -4/Factory | Z-intel Exp. Signal Interpreter | -4/Factory | Z-intel Hvy. Tesla Rifle | -4/Factory | Z-intel Adv. Energy Well | -4/Factory | Z-intel Hvy. Wave Gun | -4/Factory | Z-intel Assault Drone Bay | -4/Zhirov | Free Exp. Optical Array | -4/Zhirov | Free Imp. Arc Thrower | -4/Zhirov | Free Robot Schematics ------------------ A-15 Conveyor | -7/Data Miner | Free M-22 Extractor | -7/Data Miner | Free S-27 Virus | -7/Data Miner | Free C-17 Slicer | -7/Data Miner | Free B-60 Warrior | -7/Data Miner | Free L-41 Fighter | -7/Data Miner | Free Y-54 Guardian | -7/Data Miner | Free R-10 Processor | -7/Data Miner | Free E-15 Imp | -6/Zion | Archive A-02 Transporter | -6/Zion | Archive H-88 Terminator | -6/Zion | Archive Fabricated ------------ Lgt. Armored Exoskeleton | x1 | -7/Factory | Preloaded Lrn. Sensor Array | x2 | -6/Factory | Authchip Adv. Remote Datajack | x2 | -4/Factory | Preloaded Exp. Signal Interpreter | x1 | -4/Factory | Authchip Exp. Signal Interpreter | x1 | -3/Armory | Authchip Lrn. Sensor Array | x2 | -3/Armory | Authchip Hcp. Storage Unit | x1 | -3/Armory | Authchip Exp. Optical Array | x1 | -3/Armory | Authchip H-88 Terminator | x2 | -3/Armory | Authchip Repaired ---------- Nothing Studied --------- Field Laser | -8/Materials | Hacked Lgt. Armored Exoskeleton | -5/Factory | Hacked HERF Cannon | -3/Research | Hacked Alien Tech Used ----------------- Core Expander Integrated Dissipator Transdimensional Reconstructor Integrated Mediator Dimensional Node Initializer Achievements -------------- None Challenges ------------ None Game ------ Seed NuclearParticleTerminator Manual? 0 Play Time 04:26:08 Cumulative 478.5 hours Start 2025.10.31 @ 20:52:16 End 2025.11.01 @ 02:10:25 Sessions 1 Manual Loads 0 Difficulty Rogue Special Mode None Game No. 258 Rogue 258 Adventurer 0 Explorer 0 Win Type - Total 21 Types 13/1/5/1/0/0/0/1/0/0 Lore% 93 Gallery% 85 Achievement% 77 Wizard Run 0 Options --------- Layout 2 ASCII 0 Keyboard 1 Movement Vi Keybinds 0 Fullscreen 1 Font 28/Terminus Map View 50x52 Zoom Use 0% Tactical HUD 1 Map Filters NONE Filters NONE Steam 1 RUN: 011e0727-8829-4592-85cc-c3638f87afde